{"text_format":"1","workbook":"xlsx","n_sheets":16,"sheets":["Inicio","Actualizar","TempListas","TempListas2","Proveedores","Anexo Técnico","SolCotizacion","ResumenCotizacion","Cotizacion","Lote 1 Básico","Lote 1 AATL","Lote 1 SIIF","Lote 1 AATL + SIIF","Lote 2","CSV","formatoCeldas"],"not_rendered":{"charts":0,"images":18,"macros":1,"external_links":0,"defined_names":35,"comments":0,"pivot_tables":0},"unopened":[],"bounds":{"document_bytes":16777216,"sheet_cells":100000,"rows_first":2000,"rows_last":500,"rows_between":2000,"halvings":0,"cell_chars":16384,"cell_head_chars":4096},"cells_cut":0,"cells_raw":0,"read":"whole","date_system":"1900"}

{"sheet":"Inicio","index":0,"n_rows":14,"n_cols":4,"rows_kept":14,"cut":false,"hidden":false,"merged":[[4,0,4,4],[0,0,0,4],[1,0,1,4]]}
["INICIO"]
["Acuerdo Marco para la Adquisición de Productos y servicios electrónicos y digitales de confianza"]
["Versión 7   18/07/2024"]
[]
["Productos"]
[]
[]
[null,"#","Lote/Segmento","Si/No"]
[null,1,"Lote 1 - Segmento 1","No"]
[null,2,"Lote 1 - Segmento 2","No"]
[null,3,"Lote 1 - Segmento 3","No"]
[null,3,"Lote 1 - Segmento 4","No"]
[null,4,"Lote 1 - Segmento 5","No"]
[null,5,"Lote 2","Si"]

{"sheet":"Actualizar","index":1,"n_rows":0,"n_cols":0,"rows_kept":0,"cut":false,"hidden":true,"merged":[]}

{"sheet":"TempListas","index":2,"n_rows":46,"n_cols":1,"rows_kept":46,"cut":false,"hidden":true,"merged":[]}
["AMSEDC-SSL-01-1"]
["AMSEDC-SSL-01-2"]
["AMSEDC-SSL-02 -1"]
["AMSEDC-SSL-02 -2"]
["AMSEDC-SSL-02 -3"]
["AMSEDC-SSL-02 -4"]
["AMSEDC-SSL-02 -5"]
["AMSEDC-SSL-02 -6"]
["AMSEDC-SSL-02 -7"]
["AMSEDC-SSL-02 -8"]
["AMSEDC-SSL-03-1"]
["AMSEDC-SSL-03-2"]
["AMSEDC-SSL-03-3"]
["AMSEDC-SSL-03-4"]
["AMSEDC-SAT-1-1"]
["AMSEDC-SAT-1-2"]
["AMSEDC-SAT-1-3"]
["AMSEDC-SAT-1-4"]
["AMSEDC-SAT-2-1"]
["AMSEDC-SAT-2-2"]
["AMSEDC-SAT-2-3"]
["AMSEDC-SAT-2-4"]
["AMSEDC-SAT-3 -1"]
["AMSEDC-SAT-3 -2"]
["AMSEDC-SAT-3 -3"]
["AMSEDC-SAT-3 -4"]
["AMSEDC-SAT-3 -5"]
["AMSEDC-SAT-3 -6"]
["AMSEDC-SAT-3 -7"]
["AMSEDC-SAT-3 -8"]
["AMSEDC-SAT-4 -1"]
["AMSEDC-SAT-4 -2"]
["AMSEDC-SAT-4 -3"]
["AMSEDC-SAT-4 -4"]
["AMSEDC-SAT-4 -5"]
["AMSEDC-SAT-4 -6"]
["AMSEDC-SAT-4 -7"]
["AMSEDC-SAT-4 -8"]
["AMSEDC- SAT-5-1"]
["AMSEDC- SAT-5-2"]
["AMSEDC- SAT-5-3"]
["AMSEDC- SAT-5-4"]
["AMSEDC- SAT-5-5"]
["AMSEDC- SAT-5-6"]
["AMSEDC- SAT-5-7"]
["AMSEDC- SAT-5-8"]

{"sheet":"TempListas2","index":3,"n_rows":3,"n_cols":4,"rows_kept":3,"cut":false,"hidden":true,"merged":[]}
[]
["AMSEDC-SSL-01-2",327840,207632,218560]
[null,{"$f":"+SUM(B2:B2)","v":327840},{"$f":"+SUM(C2:C2)","v":207632},{"$f":"+SUM(D2:D2)","v":218560}]

{"sheet":"Proveedores","index":4,"n_rows":7,"n_cols":13,"rows_kept":7,"cut":false,"hidden":true,"merged":[]}
["Proveedor","NIT",null,null,"Lote_1_Segmento_1","Lote_1_Segmento_2","Lote 1 - Segmento 3","Lote_1_Segmento_4","Lote_1_ Segmento_5","Lote_2",null,"Lote_Segmento","Tabla"]
["GSE SA","900204272-8",null,null,"GSE SA","GSE SA",null,"GSE SA","GSE SA","GSE SA",null,"Lote 1 - Segmento 1","Lote_1_Segmento_1"]
["Certicámara SA","830084433-7",null,null,"Certicámara SA","Certicámara SA",null,"Certicámara SA","Certicámara SA","Certicámara SA",null,"Lote 1 - Segmento 2","Lote_1_Segmento_2"]
["Camerfirma","901312112-4",null,null,"Camerfirma","Camerfirma",null,"Camerfirma","Camerfirma","Camerfirma",null,"Lote 1 - Segmento 3","Lote_1_Segmento_3"]
["Olimpia IT","900032774 - 4",null,null,"Olimpia IT",null,null,"Olimpia IT",null,null,null,"Lote 1 - Segmento 4","Lote_1_Segmento_4"]
[null,null,null,null,null,null,null,null,null,null,null,"Lote 1 - Segmento 5","Lote_1_Segmento_5"]
[null,null,null,null,null,null,null,null,null,null,null,"Lote 2","Lote_2"]

{"sheet":"Anexo Técnico","index":5,"n_rows":17,"n_cols":4,"rows_kept":17,"cut":false,"hidden":false,"merged":[[0,1,0,3],[1,1,1,3],[2,1,2,3]]}
[null,"Con el objetivo de complementar el entendimiento sobre la solicitud de Productos y Servicios Electrónicos y Digitales de Confianza, por favor diligencie la totalidad de la información que se pide a continuación."]
[]
[null,"Tenga en cuenta que esta información es de utilidad para que el Proveedor pueda cotizar de la manera más precisa posible los Productos y Servicios Electrónicos y Digitales de Confianza, por lo cual la exactitud y completitud es muy importante."]
["No","Requerimiento adicional","Descripción ","INFORMACION SUMINISTRADA POR LA ENTIDAD COMPRADORA"]
[1,"Nombre y Nit de la Entidad Estatal a la cual se le entregará la titularidad de las licencias adquiridas."]
[2,"Lugar de entrega de los Productos y Servicios. (Especificar dirección y ciudad de entrega)."]
[3,"Datos Contacto de entrega (Especificar nombre, teléfono y correo electrónico)."]
[4,"En caso de incluir la especificación de Adobe Approved trust list, AATL, diligencie la correpsondiente justificación."]
[5,"Funciones a realizar el soporte en sitio.",null,"N/A"]
[6,"Perfil (técnico/tecnólogo o profesional) de las personas que prestan servicios adicionales en los casos que aplique.",null,"N/A"]
[7,"Área de conocimiento de las personas que prestan servicios adicionales",null,"N/A"]
[8,"Mecanismo de solicitud del soporte reactivo.",null,"N/A"]
[9,"Especificar que información o que bases de datos se van a migrar. Aplica en el caso que la Entidad Compradora solicite el servicio de migración de información o de bases de datos.",null,"N/A"]
[10,"Actividades del gerente de cuenta.",null,"N/A"]
[11,"Indique número de personas que requieren de capacitación. En caso que la Entidad Compradora solicite el servicio de capacitación usuario final o usuario técnico.",null,"N/A"]
[12,"Especificar características de configuración y descripción de las tareas a realizar. En caso que la Entidad Compradora solicite el servicio de configuración y parametrización. ",null,"N/A"]
[13,"Establecer las políticas de respaldo de información.",null,"N/A"]

{"sheet":"SolCotizacion","index":6,"n_rows":33,"n_cols":16,"rows_kept":33,"cut":false,"hidden":true,"merged":[[16,6,16,7],[16,9,16,10],[10,0,10,2],[10,3,10,8],[14,0,14,13],[12,0,12,2],[12,3,12,8],[10,10,10,13],[18,5,18,6],[17,1,17,4],[16,4,16,5],[32,4,32,6],[32,7,32,8],[29,1,29,6],[29,7,29,8],[30,1,30,6],[30,7,30,8],[21,1,21,2],[20,3,20,7],[21,3,21,7],[23,0,23,13],[25,0,28,8],[20,1,20,2],[16,12,16,13],[0,0,0,13],[2,0,2,13],[4,0,4,13],[8,0,8,2],[8,3,8,8],[6,0,6,2],[6,3,6,8],[3,0,3,13],[1,0,1,13],[6,10,6,13],[8,10,8,13]]}
["SOLICITUD DE COTIZACIÓN"]
["Solicitud de Cotización "]
["Acuerdo Marco para la Adquisición de Productos y servicios electrónicos y digitales de confianza"]
[{"$f":"+Inicio!A3","v":"Versión 7   18/07/2024"}]
["Información de la Entidad Compradora"]
[]
["Nombre de la Entidad:",null,null,null,null,null,null,null,null,"NIT:"]
[]
["Dirección de la Entidad:",null,null,null,null,null,null,null,null,"Municipio:"]
[]
["Nombre del Comprador:",null,null,null,null,null,null,null,null,"Teléfono:"]
[]
["Correo del comprador:"]
[]
[" Artículos Solicitud de Cotización"]
[]
[null,null,null,null,"Fecha de creación cotización:",null,null,null,"Fecha de generación OC:",null,null,"Fecha de vencimiento OC:"]
[null,"Agregar o Eliminar Filas:"]
[null,1,null,null,"Lote/Segmento",null,null,{"$f":"+VLOOKUP(Lote_Segmento,Lote_Segmento1[],2,0)","v":{"$error":"#N/A"}},null,"Lista Confianza AATL",null,"Operador SIIF"]
[null,null,null,null,null,"Lote 2"]
["Item","Código",null,"Nombre",null,null,null,null,"Caracteristica 1","Característica 2","Característica 3","Característica 4","Unidad de Facturación","Cantidad"]
[1,null,null,null,null,null,null,null,null,null,null,null,null,null,null,3]
[]
["Gravámenes adicionales (estampillas)"]
[]
["Si los hay, indique los gravámenes adicionales (estampilllas) a los que está sujeta la Orden de Compra. Son gravámenes adiconales por ejemplo; estampillas y demás impuestos territoriales. Los impuestos como ICA y retención en la fuente NO son gravámenes adicionales."]
[]
[]
[]
["No.","Descripción ",null,null,null,null,null,"% Gravámen"]
[1]
[]
[null,null,null,null,"Total Gravámenes adicionales",null,null,{"$f":"SUM(H31:I31)","v":0}]

{"sheet":"ResumenCotizacion","index":7,"n_rows":37,"n_cols":19,"rows_kept":37,"cut":false,"hidden":true,"merged":[[23,14,23,16],[27,0,27,18],[21,1,21,2],[10,0,10,2],[10,3,10,8],[10,10,10,12],[14,0,14,18],[24,14,24,16],[25,17,25,18],[25,14,25,16],[23,17,23,18],[24,17,24,18],[21,3,21,7],[16,9,16,10],[18,7,18,8],[12,0,12,2],[36,4,36,6],[36,7,36,8],[29,0,32,8],[33,1,33,6],[33,7,33,8],[34,1,34,6],[34,7,34,8],[1,0,1,13],[3,0,3,13],[4,0,4,18],[0,0,0,18],[2,0,2,18],[6,0,6,2],[6,3,6,8],[6,10,6,12],[12,3,12,8],[8,0,8,2],[8,3,8,8],[8,10,8,12],[20,1,20,2],[16,6,16,7],[16,12,16,13],[20,3,20,7],[18,5,18,6],[16,4,16,5]]}
["RESUMEN DE COTIZACIÓN"]
["Solicitud de Cotización "]
["Acuerdo Marco para la Adquisición de Productos y servicios electrónicos y digitales de confianza"]
[{"$f":"+SolCotizacion!$A$4","v":"Versión 7   18/07/2024"}]
["Información de la Entidad Compradora"]
[]
["Nombre de la Entidad:",null,null,{"$f":"SolCotizacion!D7","v":0},null,null,null,null,null,"NIT:",{"$f":"SolCotizacion!K7","v":0}]
[]
["Dirección de la Entidad:",null,null,{"$f":"SolCotizacion!D9","v":0},null,null,null,null,null,"Municipio:",{"$f":"SolCotizacion!K9","v":0}]
[]
["Nombre del Comprador:",null,null,{"$f":"SolCotizacion!D11","v":0},null,null,null,null,null,"Teléfono:",{"$f":"SolCotizacion!K11","v":0}]
[]
["Correo del comprador:",null,null,{"$f":"SolCotizacion!D13","v":0}]
[]
[" Artículos de la Cotización"]
[]
[null,null,null,null,"Fecha de creación cotización:",null,{"$f":"SolCotizacion!G17","v":"00:00:00"},null,"Fecha de generación OC:",{"$f":"SolCotizacion!J17","v":"00:00:00"},null,"Fecha de vencimiento OC:",{"$f":"SolCotizacion!M17","v":"00:00:00"}]
[]
[null,null,null,null,null,"Lote/Segmento",null,{"$f":"SolCotizacion!F19","v":0}]
[]
["Item","Código",null,"Nombre",null,null,null,null,"Caracteristica 1","Característica 2","Característica 3","Característica 4","Unidad de Facturación","Cantidad","Precio Catálogo","Precio + Gravamen ","Precio x Cantidad","IVA","Subtotal"]
[1,null,null,null,null,null,null,null,null,null,null,null,null,null,null,{"$f":"ROUND(IFERROR((O22)/(1-TotalGravamen),\"\"),2)","v":0},{"$f":"ROUND(IFERROR(N22*P22,\"\"),2)","v":0},{"$f":"ROUND(IFERROR(Q22*0.19,\"\"),2)","v":0},{"$f":"IFERROR(Q22+R22,\"\")","v":0}]
[]
[null,null,null,null,null,null,null,null,null,null,null,null,null,null,"Subtotal",null,null,{"$f":"SUM(S22:S22)-SUM(R22:R22)","v":0}]
[null,null,null,null,null,null,null,null,null,null,null,null,null,null,"IVA",null,null,{"$f":"SUM(R22:R22)","v":0}]
[null,null,null,null,null,null,null,null,null,null,null,null,null,null,"Total",null,null,{"$f":"SubTotal_R+IVA_R","v":0}]
[]
["Gravámenes adicionales (estampillas)"]
[]
["Si los hay, indique los gravámenes adicionales (estampilllas) a los que está sujeta la Orden de Compra. Son gravámenes adiconales por ejemplo; estampillas y demás impuestos territoriales. Los impuestos como ICA y retención en la fuente NO son gravámenes adicionales."]
[]
[]
[]
["No.","Descripción ",null,null,null,null,null,"% Gravámen"]
[]
[]
[null,null,null,null,"Total Gravámenes adicionales",null,null,{"$f":"SUM(H35:I35)","v":0}]

{"sheet":"Cotizacion","index":8,"n_rows":37,"n_cols":21,"rows_kept":37,"cut":false,"hidden":true,"merged":[[10,18,10,19],[27,0,27,8],[12,0,12,2],[12,3,12,8],[21,3,21,7],[16,4,16,5],[18,5,18,6],[18,7,18,8],[20,3,20,7],[20,1,20,2],[23,16,23,19],[16,9,16,10],[16,12,16,13],[24,16,24,19],[25,16,25,19],[8,16,8,17],[8,18,8,19],[36,4,36,6],[36,7,36,8],[34,1,34,6],[34,7,34,8],[29,0,32,8],[33,1,33,6],[33,7,33,8],[10,0,10,2],[10,3,10,8],[10,10,10,12],[21,1,21,2],[16,6,16,7],[14,0,14,20],[10,16,10,17],[6,0,6,2],[6,3,6,8],[6,10,6,12],[8,0,8,2],[8,3,8,8],[8,10,8,12],[1,0,1,13],[3,0,3,13],[4,15,4,20],[4,0,4,12],[0,0,0,20],[2,0,2,20]]}
["COTIZACIÓN"]
["Solicitud de Cotización "]
["Acuerdo Marco para la Adquisición de Productos y servicios electrónicos y digitales de confianza"]
[{"$f":"+SolCotizacion!$A$4","v":"Versión 7   18/07/2024"}]
["Información de la Entidad Compradora",null,null,null,null,null,null,null,null,null,null,null,null,null,null,"Datos Proveedor"]
[]
["Nombre de la Entidad:",null,null,{"$f":"SolCotizacion!D7","v":0},null,null,null,null,null,"NIT:",{"$f":"SolCotizacion!K7","v":0}]
[]
["Dirección de la Entidad:",null,null,{"$f":"SolCotizacion!D9","v":0},null,null,null,null,null,"Municipio:",{"$f":"SolCotizacion!K9","v":0},null,null,null,null,null,"Proveedor"]
[]
["Nombre del Comprador:",null,null,{"$f":"SolCotizacion!D11","v":0},null,null,null,null,null,"Teléfono:",{"$f":"SolCotizacion!K11","v":0},null,null,null,null,null,"NIT",null,{"$f":"IFERROR(VLOOKUP(Proveedor_C,Proveedores!A2:B5,2,0),\"\")","v":""}]
[]
["Correo del comprador:",null,null,{"$f":"SolCotizacion!D13","v":0}]
[]
[" Artículos de la Cotización"]
[]
[null,null,null,null,"Fecha de creación cotización:",null,{"$f":"SolCotizacion!G17","v":"00:00:00"},null,"Fecha de generación OC:",{"$f":"SolCotizacion!J17","v":"00:00:00"},null,"Fecha de vencimiento OC:",{"$f":"SolCotizacion!M17","v":"00:00:00"}]
[]
[null,null,null,null,null,"Lote/Segmento",null,{"$f":"SolCotizacion!F19","v":0}]
[]
["Item","Código",null,"Nombre",null,null,null,null,"Caracteristica 1","Característica 2","Característica 3","Característica 4","Unidad de Facturación","Cantidad","Precio Catálogo","Precio + Gravamen","Descuento","Precio con descuento","Subtotal","IVA","Valor IVA sobre Descuento"]
[1,null,null,null,null,null,null,null,null,null,null,null,null,null,null,{"$f":"IFERROR(ROUND((O22)/(1-TotalGravamen),2),\"\")","v":0},null,{"$f":"IFERROR(ROUND(P22-(P22*Q22),2),\"\")","v":0},{"$f":"IFERROR(ROUND((R22*N22),2),\"\")","v":0},null,{"$f":"IFERROR(IF(T22=\"Si\",ROUND(S22*19%,2),0),\"\")","v":0}]
[]
[null,null,null,null,null,null,null,null,null,null,null,null,null,null,null,"Subtotal",{"$f":"SUM(S19:S22)","v":0}]
[null,null,null,null,null,null,null,null,null,null,null,null,null,null,null,"IVA",{"$f":"SUM(U22:U22)","v":0}]
[null,null,null,null,null,null,null,null,null,null,null,null,null,null,null,"Total",{"$f":"SubTotal_C+IVA_C","v":0}]
[]
["Gravámenes adicionales (estampillas)"]
[]
["Si los hay, indique los gravámenes adicionales (estampilllas) a los que está sujeta la Orden de Compra. Son gravámenes adiconales por ejemplo; estampillas y demás impuestos territoriales. Los impuestos como ICA y retención en la fuente NO son gravámenes adicionales."]
[]
[]
[]
["No.","Descripción ",null,null,null,null,null,"% Gravámen"]
[]
[]
[null,null,null,null,"Total Gravámenes adicionales",null,null,{"$f":"SUM(H35:I35)","v":0}]

{"sheet":"Lote 1 Básico","index":9,"n_rows":89,"n_cols":11,"rows_kept":89,"cut":false,"hidden":true,"merged":[]}
["CODIGO","NOMBRE","Característica 1","Característica 2","Característica 3","Característica 4","Unidad de facturación","GSE SA","Certicámara SA","Camerfirma","Olimpia IT"]
["AMSEDC-CD-01-1","Certificados de Firma Electrónica Acreditado","SEGMENTO 2","N/A","N/A","Todas las zonas","Plataforma mes",7649600,1420640,36062400,"N/A"]
["AMSEDC-CD-01-2","Certificados de Firma Electrónica Acreditado","SEGMENTO 2","N/A","N/A","Todas las zonas","Transacción",874.24,10490.88,3562.5279999999998,"N/A"]
["AMSEDC-CD-02-1","Certificados digitales de persona natural Acreditado","SEGMENTO 1 y 4","Token físico","1 año","Zona 1","Certificado",142064,273200,163920,229488]
["AMSEDC-CD-02-2","Certificados digitales de persona natural Acreditado","SEGMENTO 1 y 4","Token físico","1 año","Zona 2","Certificado",156270.39999999999,273200,174848,229488]
["AMSEDC-CD-02-3","Certificados digitales de persona natural Acreditado","SEGMENTO 1 y 4","Token físico","1 año","Zona 3","Certificado",161734.39999999999,273200,196704,229488]
["AMSEDC-CD-02-4","Certificados digitales de persona natural Acreditado","SEGMENTO 1 y 4","Token virtual","1 año","Todas las zonas","Certificado",131136,251344,174848,165012.79999999999]
["AMSEDC-CD-02-5","Certificados digitales de persona natural Acreditado","SEGMENTO 1 y 4","Token físico","2 años","Zona 1","Certificado",199982.4,327840,245880,338768]
["AMSEDC-CD-02-6","Certificados digitales de persona natural Acreditado","SEGMENTO 1 y 4","Token físico","2 años","Zona 2","Certificado",218560,327840,262272,338768]
["AMSEDC-CD-02-7","Certificados digitales de persona natural Acreditado","SEGMENTO 1 y 4","Token físico","2 años","Zona 3","Certificado",225116.79999999999,327840,295056,338768]
["AMSEDC-CD-02-8","Certificados digitales de persona natural Acreditado","SEGMENTO 1 y 4","Token virtual","2 años","Todas las zonas","Certificado",157363.20000000001,327840,262272,273200]
["AMSEDC-CD-03-1","Certificados digitales de profesional titulado Acreditado","SEGMENTO 1 y 4","Token físico","1 año","Zona 1","Certificado",142064,273200,163920,229488]
["AMSEDC-CD-03-2","Certificados digitales de profesional titulado Acreditado","SEGMENTO 1 y 4","Token físico","1 año","Zona 2","Certificado",156270.39999999999,273200,174848,229488]
["AMSEDC-CD-03-3","Certificados digitales de profesional titulado Acreditado","SEGMENTO 1 y 4","Token físico","1 año","Zona 3","Certificado",180312,273200,196704,229488]
["AMSEDC-CD-03-4","Certificados digitales de profesional titulado Acreditado","SEGMENTO 1 y 4","Token virtual","1 año","Todas las zonas","Certificado",131136,251344,174848,165012.79999999999]
["AMSEDC-CD-03-5","Certificados digitales de profesional titulado Acreditado","SEGMENTO 1 y 4","Token físico","2 años","Zona 1","Certificado",199982.4,327840,245880,338768]
["AMSEDC-CD-03-6","Certificados digitales de profesional titulado Acreditado","SEGMENTO 1 y 4","Token físico","2 años","Zona 2","Certificado",218560,546400,262272,338768]
["AMSEDC-CD-03-7","Certificados digitales de profesional titulado Acreditado","SEGMENTO 1 y 4","Token físico","2 años","Zona 3","Certificado",225116.79999999999,546400,295056,338768]
["AMSEDC-CD-03-8","Certificados digitales de profesional titulado Acreditado","SEGMENTO 1 y 4","Token virtual","2 años","Todas las zonas","Certificado",157363.20000000001,502688,262272,273200]
["AMSEDC-CD-04-1"," Certificados digitales de persona jurídica acreditado","SEGMENTO 1 y 4","Token físico","1 año","Zona 1","Certificado",655680,488481.6,163920,874240]
["AMSEDC-CD-04-2"," Certificados digitales de persona jurídica acreditado","SEGMENTO 1 y 4","Token físico","1 año","Zona 2","Certificado",732176,488481.6,174848,874240]
["AMSEDC-CD-04-3"," Certificados digitales de persona jurídica acreditado","SEGMENTO 1 y 4","Token físico","1 año","Zona 3","Certificado",786816,488481.6,196704,874240]
["AMSEDC-CD-04-4"," Certificados digitales de persona jurídica acreditado","SEGMENTO 1 y 4","Token virtual","1 año","Todas las zonas","Certificado",590112,488481.6,174848,645844.80000000005]
["AMSEDC-CD-04-5"," Certificados digitales de persona jurídica acreditado","SEGMENTO 1 y 4","Token físico","2 años","Zona 1","Certificado",721248,832713.6,245880,1311360]
["AMSEDC-CD-04-6"," Certificados digitales de persona jurídica acreditado","SEGMENTO 1 y 4","Token físico","2 años","Zona 2","Certificado",805393.60000000009,832713.6,262272,1311360]
["AMSEDC-CD-04-7"," Certificados digitales de persona jurídica acreditado","SEGMENTO 1 y 4","Token físico","2 años","Zona 3","Certificado",865497.60000000009,832713.6,295056,1311360]
["AMSEDC-CD-04-8"," Certificados digitales de persona jurídica acreditado","SEGMENTO 1 y 4","Token virtual","2 años","Todas las zonas","Certificado",786816,832713.6,262272,1162739.2]
["AMSEDC-CD-05-1","Certificados digitales de Representación legal Acreditado","SEGMENTO 1 y 4","Token físico","1 año","Zona 1","Certificado",142064,273200,163920,229488]
["AMSEDC-CD-05-2","Certificados digitales de Representación legal Acreditado","SEGMENTO 1 y 4","Token físico","1 año","Zona 2","Certificado",156270.39999999999,273200,174848,229488]
["AMSEDC-CD-05-3","Certificados digitales de Representación legal Acreditado","SEGMENTO 1 y 4","Token físico","1 año","Zona 3","Certificado",180312,273200,196704,229488]
["AMSEDC-CD-05-4","Certificados digitales de Representación legal Acreditado","SEGMENTO 1 y 4","Token virtual","1 año","Todas las zonas","Certificado",131136,251344,174848,165012.79999999999]
["AMSEDC-CD-05-5","Certificados digitales de Representación legal Acreditado","SEGMENTO 1 y 4","Token físico","2 años","Zona 1","Certificado",199982.4,546400,245880,338768]
["AMSEDC-CD-05-6","Certificados digitales de Representación legal Acreditado","SEGMENTO 1 y 4","Token físico","2 años","Zona 2","Certificado",218560,546400,262272,338768]
["AMSEDC-CD-05-7","Certificados digitales de Representación legal Acreditado","SEGMENTO 1 y 4","Token físico","2 años","Zona 3","Certificado",225116.79999999999,546400,295056,338768]
["AMSEDC-CD-05-8","Certificados digitales de Representación legal Acreditado","SEGMENTO 1 y 4","Token virtual","2 años","Todas las zonas","Certificado",157363.20000000001,502688,262272,273200]
["AMSEDC-CD-06-1","Certificados digitales de Pertenencia a Empresa Acreditado","SEGMENTO 1 y 4","Token físico","1 año","Zona 1","Certificado",142064,273200,163920,229488]
["AMSEDC-CD-06-2","Certificados digitales de Pertenencia a Empresa Acreditado","SEGMENTO 1 y 4","Token físico","1 año","Zona 2","Certificado",156270.39999999999,273200,174848,229488]
["AMSEDC-CD-06-3","Certificados digitales de Pertenencia a Empresa Acreditado","SEGMENTO 1 y 4","Token físico","1 año","Zona 3","Certificado",180312,273200,196704,229488]
["AMSEDC-CD-06-4","Certificados digitales de Pertenencia a Empresa Acreditado","SEGMENTO 1 y 4","Token virtual","1 año","Todas las zonas","Certificado",131136,251344,174848,165012.79999999999]
["AMSEDC-CD-06-5","Certificados digitales de Pertenencia a Empresa Acreditado","SEGMENTO 1 y 4","Token físico","2 años","Zona 1","Certificado",199982.4,546400,245880,338768]
["AMSEDC-CD-06-6","Certificados digitales de Pertenencia a Empresa Acreditado","SEGMENTO 1 y 4","Token físico","2 años","Zona 2","Certificado",218560,546400,262272,338768]
["AMSEDC-CD-06-7","Certificados digitales de Pertenencia a Empresa Acreditado","SEGMENTO 1 y 4","Token físico","2 años","Zona 3","Certificado",225116.79999999999,546400,295056,338768]
["AMSEDC-CD-06-8","Certificados digitales de Pertenencia a Empresa Acreditado","SEGMENTO 1 y 4","Token virtual","2 años","Todas las zonas","Certificado",157363.20000000001,502688,262272,273200]
["AMSEDC-CD-07-1","Certificados Digitales de Función Pública Acreditado","SEGMENTO 1 y 4","Token físico o Token virtual","1 año","Zona 1","Certificado",142064,273200,163920,229488]
["AMSEDC-CD-07-2","Certificados Digitales de Función Pública Acreditado","SEGMENTO 1 y 4","Token físico o Token virtual","1 año","Zona 2","Certificado",156270.39999999999,273200,174848,229488]
["AMSEDC-CD-07-3","Certificados Digitales de Función Pública Acreditado","SEGMENTO 1 y 4","Token físico o Token virtual","1 año","Zona 3","Certificado",180312,273200,196704,229488]
["AMSEDC-CD-07-4","Certificados Digitales de Función Pública Acreditado","SEGMENTO 1 y 4","Token físico o Token virtual","2 años","Zona 1","Certificado",199982.4,546400,245880,338768]
["AMSEDC-CD-07-5","Certificados Digitales de Función Pública Acreditado","SEGMENTO 1 y 4","Token físico o Token virtual","2 años","Zona 2","Certificado",218560,546400,262272,338768]
["AMSEDC-CD-07-6","Certificados Digitales de Función Pública Acreditado","SEGMENTO 1 y 4","Token físico o Token virtual","2 años","Zona 3","Certificado",225116.79999999999,546400,295056,338768]
["AMSEDC-CD-09-1","Software como Servicio de gestión de Firmas","SEGMENTO 4","Licencia SaaS","N/A","Todas las zonas","Licencia SaaS/Mes",49176000,1420640,27320000,3278400]
["AMSEDC-CD-09-2","Software como Servicio de gestión de Firmas","SEGMENTO 4","Licencia On Premises","N/A","Todas las zonas","Licencia On Premises/Mes",43712000,1420640,16392000,54640000]
["AMSEDC-CD-09-3","Software como Servicio de gestión de Firmas","SEGMENTO 4","Transacción efectiva (necesario)","N/A","Todas las zonas","Transacción",109.28,10490.88,3562.5279999999998,1311.36]
["AMSEDC-CD-10-1","Servicio de API de integración","SEGMENTO 1 y 4","Valor Licencia mes de API de integración ","N/A","Todas las zonas","Licencia/Mes",1202080,1420640,10928000,1967040]
["AMSEDC-CD-11-1","Envío y recepción del mensaje de datos y de documentos electrónicos transferibles","SEGMENTO 5","Correo electrónico Certificado (1 megabyte)","N/A","Todas las zonas","Correo",819.6,1066.5727999999999,1967.04,"N/A"]
["AMSEDC-CD-12-1","Estampado Cronológico Acreditado","SEGMENTO 1 y 4","Estampa","N/A","Todas las zonas","Estampa",67.753600000000006,194.51839999999999,327.84,1046.9023999999999]
["AMSEDC-CD-12-2","Estampado Cronológico Acreditado","SEGMENTO 2","Estampa","N/A","Todas las zonas","Estampa",67.753600000000006,194.51839999999999,327.84,"N/A"]
["AMSEDC-CD-12-3","Estampado Cronológico Acreditado","SEGMENTO 5","Estampa","N/A","Todas las zonas","Estampa",67.753600000000006,194.51839999999999,327.84,"N/A"]
["AMSEDC-SAT-1-1","Hora de implementación","Todos los segmentos","Profesional","Presencial","Zona 1","Hora",212933,627592,224140,336210]
["AMSEDC-SAT-1-2","Hora de implementación","Todos los segmentos","Profesional","Presencial","Zona 2","Hora",235347,851732,313796,392245]
["AMSEDC-SAT-1-3","Hora de implementación","Todos los segmentos","Profesional","Presencial","Zona 3","Hora",280175,1075872,392245,448280]
["AMSEDC-SAT-1-4","Hora de implementación","Todos los segmentos","Profesional","Virtual","Todas las zonas","Hora",190519,201726,201726,224140]
["AMSEDC-SAT-2-1","Sesión capacitación","Todos los segmentos","Profesional","Virtual","Todas las zonas","Sesión",560350,806904,201726,1353805.6]
["AMSEDC-SAT-2-2","Sesión capacitación","Todos los segmentos","Profesional","Presencial","Zona 1","Sesión",2241400,3137960,224140,1877396.6400000001]
["AMSEDC-SAT-2-3","Sesión capacitación","Todos los segmentos","Profesional","Presencial","Zona 2","Sesión",3362100,4258660,313796,1989466.6400000001]
["AMSEDC-SAT-2-4","Sesión capacitación","Todos los segmentos","Profesional","Presencial","Zona 3","Sesión",4482800,5379360,392245,2175951.12]
["AMSEDC-SAT-3-1","Soporte Técnico","Todos los segmentos","Técnico o tecnologo","Remoto","Todas las zonas","Hora",145691,2.2414000000000001,123277,146587.56]
["AMSEDC-SAT-3-2","Soporte Técnico","Todos los segmentos","Técnico o tecnologo","En sitio","Zona 1","Hora",201726,627592,179312,211924.37]
["AMSEDC-SAT-3-3","Soporte Técnico","Todos los segmentos","Técnico o tecnologo","En sitio","Zona 2","Hora",224140,851732,212933,225933.12]
["AMSEDC-SAT-3-4","Soporte Técnico","Todos los segmentos","Técnico o tecnologo","En sitio","Zona 3","Hora",268968,1075872,235347,249243.68]
["AMSEDC-SAT-3-5","Soporte Técnico","Todos los segmentos","Profesional","Remoto","Todas las zonas","Hora",190519,2.2414000000000001,201726,191975.91]
["AMSEDC-SAT-3-6","Soporte Técnico","Todos los segmentos","Profesional","En sitio","Zona 1","Hora",212933,627592,224140,257312.72]
["AMSEDC-SAT-3-7","Soporte Técnico","Todos los segmentos","Profesional","En sitio","Zona 2","Hora",235347,851732,313796,271321.46999999997]
["AMSEDC-SAT-3-8","Soporte Técnico","Todos los segmentos","Profesional","En sitio","Zona 3","Hora",280175,1075872,392245,294632.03000000003]
["AMSEDC-SAT-4-1","Soporte Técnico Proactivo","Todos los segmentos","Técnico o tecnologo","Remoto","Todas las zonas","Hora",145691,2.2414000000000001,123277,146587.56]
["AMSEDC-SAT-4-2","Soporte Técnico Proactivo","Todos los segmentos","Técnico o tecnologo","En sitio","Zona 1","Hora",201726,627592,179312,211924.37]
["AMSEDC-SAT-4-3","Soporte Técnico Proactivo","Todos los segmentos","Técnico o tecnologo","En sitio","Zona 2","Hora",224140,851732,212933,225933.12]
["AMSEDC-SAT-4-4","Soporte Técnico Proactivo","Todos los segmentos","Técnico o tecnologo","En sitio","Zona 3","Hora",268968,1075872,235347,249243.68]
["AMSEDC-SAT-4-5","Soporte Técnico Proactivo","Todos los segmentos","Profesional","Remoto","Todas las zonas","Hora",145691,2.2414000000000001,201726,191975.91]
["AMSEDC-SAT-4-6","Soporte Técnico Proactivo","Todos los segmentos","Profesional","En sitio","Zona 1","Hora",201726,627592,224140,257312.72]
["AMSEDC-SAT-4-7","Soporte Técnico Proactivo","Todos los segmentos","Profesional","En sitio","Zona 2","Hora",224140,851732,313796,271321.46999999997]
["AMSEDC-SAT-4-8","Soporte Técnico Proactivo","Todos los segmentos","Profesional","En sitio","Zona 3","Hora",268968,1075872,392245,294632.03000000003]
["AMSEDC-SAT-5-1","Soporte Técnico Reactivo","Todos los segmentos","Técnico o tecnologo","Remoto","Todas las zonas","Hora",145691,2.2414000000000001,123277,146587.56]
["AMSEDC-SAT-5-2","Soporte Técnico Reactivo","Todos los segmentos","Técnico o tecnologo","En sitio","Zona 1","Hora",201726,627592,179312,211924.37]
["AMSEDC-SAT-5-3","Soporte Técnico Reactivo","Todos los segmentos","Técnico o tecnologo","En sitio","Zona 2","Hora",224140,851732,212933,225933.12]
["AMSEDC-SAT-5-4","Soporte Técnico Reactivo","Todos los segmentos","Técnico o tecnologo","En sitio","Zona 3","Hora",268968,1075872,235347,249243.68]
["AMSEDC-SAT-5-5","Soporte Técnico Reactivo","Todos los segmentos","Profesional","Remoto","Todas las zonas","Hora",145691,2.2414000000000001,201726,191975.91]
["AMSEDC-SAT-5-6","Soporte Técnico Reactivo","Todos los segmentos","Profesional","En sitio","Zona 1","Hora",201726,627592,224140,257312.72]
["AMSEDC-SAT-5-7","Soporte Técnico Reactivo","Todos los segmentos","Profesional","En sitio","Zona 2","Hora",224140,851732,313796,271321.46999999997]
["AMSEDC-SAT-5-8","Soporte Técnico Reactivo","Todos los segmentos","Profesional","En sitio","Zona 3","Hora",268968,1075872,392245,294632.03000000003]

{"sheet":"Lote 1 AATL","index":10,"n_rows":89,"n_cols":11,"rows_kept":89,"cut":false,"hidden":true,"merged":[]}
["CODIGO","NOMBRE","Característica 1","Característica 2","Característica 3","Característica 4","Unidad de facturación","GSE SA","Certicámara SA","Camerfirma","Olimpia IT"]
["AMSEDC-CD-01-1","Certificados de Firma Electrónica Acreditado","SEGMENTO 2","N/A","N/A","Todas las zonas","Plataforma mes",7649600,1420640,36062400,"N/A"]
["AMSEDC-CD-01-2","Certificados de Firma Electrónica Acreditado","SEGMENTO 2","N/A","N/A","Todas las zonas","Transacción",874.24,10490.88,3562.5279999999998,"N/A"]
["AMSEDC-CD-02-1-ESP 01","Certificados digitales de persona natural Acreditado-AATL","SEGMENTO 1 y 4","Token físico","1 año","Zona 1","Certificado",144905.28,273473.19999999995,172116,234077.76]
["AMSEDC-CD-02-2-ESP 01","Certificados digitales de persona natural Acreditado-AATL","SEGMENTO 1 y 4","Token físico","1 año","Zona 2","Certificado",159395.80799999999,273473.19999999995,183590.39999999999,234077.76]
["AMSEDC-CD-02-3-ESP 01","Certificados digitales de persona natural Acreditado-AATL","SEGMENTO 1 y 4","Token físico","1 año","Zona 3","Certificado",164969.08799999999,273473.19999999995,206539.2,234077.76]
["AMSEDC-CD-02-4-ESP 01","Certificados digitales de persona natural Acreditado-AATL","SEGMENTO 1 y 4","Token virtual","1 año","Todas las zonas","Certificado",133758.72,251595.34399999998,183590.39999999999,168313.05600000001]
["AMSEDC-CD-02-5-ESP 01","Certificados digitales de persona natural Acreditado-AATL","SEGMENTO 1 y 4","Token físico","2 años","Zona 1","Certificado",203982.04800000001,328167.83999999991,258174,345543.36]
["AMSEDC-CD-02-6-ESP 01","Certificados digitales de persona natural Acreditado-AATL","SEGMENTO 1 y 4","Token físico","2 años","Zona 2","Certificado",222931.20000000001,328167.83999999991,275385.59999999998,345543.36]
["AMSEDC-CD-02-7-ESP 01","Certificados digitales de persona natural Acreditado-AATL","SEGMENTO 1 y 4","Token físico","2 años","Zona 3","Certificado",229619.136,328167.83999999991,309808.8,345543.36]
["AMSEDC-CD-02-8-ESP 01","Certificados digitales de persona natural Acreditado-AATL","SEGMENTO 1 y 4","Token virtual","2 años","Todas las zonas","Certificado",160510.46400000001,328167.83999999991,275385.59999999998,278664]
["AMSEDC-CD-03-1-ESP 01","Certificados digitales de profesional titulado Acreditado-AATL","SEGMENTO 1 y 4","Token físico","1 año","Zona 1","Certificado",144905.28,273473.19999999995,172116,234077.76]
["AMSEDC-CD-03-2-ESP 01","Certificados digitales de profesional titulado Acreditado-AATL","SEGMENTO 1 y 4","Token físico","1 año","Zona 2","Certificado",159395.80799999999,273473.19999999995,183590.39999999999,234077.76]
["AMSEDC-CD-03-3-ESP 01","Certificados digitales de profesional titulado Acreditado-AATL","SEGMENTO 1 y 4","Token físico","1 año","Zona 3","Certificado",183918.24,273473.19999999995,206539.2,234077.76]
["AMSEDC-CD-03-4-ESP 01","Certificados digitales de profesional titulado Acreditado-AATL","SEGMENTO 1 y 4","Token virtual","1 año","Todas las zonas","Certificado",133758.72,251595.34399999998,183590.39999999999,168313.05600000001]
["AMSEDC-CD-03-5-ESP 01","Certificados digitales de profesional titulado Acreditado-AATL","SEGMENTO 1 y 4","Token físico","2 años","Zona 1","Certificado",203982.04800000001,328167.83999999991,258174,345543.36]
["AMSEDC-CD-03-6-ESP 01","Certificados digitales de profesional titulado Acreditado-AATL","SEGMENTO 1 y 4","Token físico","2 años","Zona 2","Certificado",222931.20000000001,546946.39999999991,275385.59999999998,345543.36]
["AMSEDC-CD-03-7-ESP 01","Certificados digitales de profesional titulado Acreditado-AATL","SEGMENTO 1 y 4","Token físico","2 años","Zona 3","Certificado",229619.136,546946.39999999991,309808.8,345543.36]
["AMSEDC-CD-03-8-ESP 01","Certificados digitales de profesional titulado Acreditado-AATL","SEGMENTO 1 y 4","Token virtual","2 años","Todas las zonas","Certificado",160510.46400000001,503190.68799999997,275385.59999999998,278664]
["AMSEDC-CD-04-1-ESP 01"," Certificados digitales de persona jurídica acreditado-AATL","SEGMENTO 1 y 4","Token físico","1 año","Zona 1","Certificado",668793.59999999998,488970.08159999992,172116,891724.80000000005]
["AMSEDC-CD-04-2-ESP 01"," Certificados digitales de persona jurídica acreditado-AATL","SEGMENTO 1 y 4","Token físico","1 año","Zona 2","Certificado",746819.52,488970.08159999992,183590.39999999999,891724.80000000005]
["AMSEDC-CD-04-3-ESP 01"," Certificados digitales de persona jurídica acreditado-AATL","SEGMENTO 1 y 4","Token físico","1 año","Zona 3","Certificado",802552.31999999995,488970.08159999992,206539.2,891724.80000000005]
["AMSEDC-CD-04-4-ESP 01"," Certificados digitales de persona jurídica acreditado-AATL","SEGMENTO 1 y 4","Token virtual","1 año","Todas las zonas","Certificado",601914.24,488970.08159999992,183590.39999999999,658761.696]
["AMSEDC-CD-04-5-ESP 01"," Certificados digitales de persona jurídica acreditado-AATL","SEGMENTO 1 y 4","Token físico","2 años","Zona 1","Certificado",735672.96,833546.31359999988,258174,1337587.2]
["AMSEDC-CD-04-6-ESP 01"," Certificados digitales de persona jurídica acreditado-AATL","SEGMENTO 1 y 4","Token físico","2 años","Zona 2","Certificado",821501.47200000007,833546.31359999988,275385.59999999998,1337587.2]
["AMSEDC-CD-04-7-ESP 01"," Certificados digitales de persona jurídica acreditado-AATL","SEGMENTO 1 y 4","Token físico","2 años","Zona 3","Certificado",882807.55200000014,833546.31359999988,309808.8,1337587.2]
["AMSEDC-CD-04-8-ESP 01"," Certificados digitales de persona jurídica acreditado-AATL","SEGMENTO 1 y 4","Token virtual","2 años","Todas las zonas","Certificado",802552.31999999995,833546.31359999988,275385.59999999998,1185993.9839999999]
["AMSEDC-CD-05-1-ESP 01","Certificados digitales de Representación legal Acreditado-AATL","SEGMENTO 1 y 4","Token físico","1 año","Zona 1","Certificado",144905.28,273473.19999999995,172116,234077.76]
["AMSEDC-CD-05-2-ESP 01","Certificados digitales de Representación legal Acreditado-AATL","SEGMENTO 1 y 4","Token físico","1 año","Zona 2","Certificado",159395.80799999999,273473.19999999995,183590.39999999999,234077.76]
["AMSEDC-CD-05-3-ESP 01","Certificados digitales de Representación legal Acreditado-AATL","SEGMENTO 1 y 4","Token físico","1 año","Zona 3","Certificado",183918.24,273473.19999999995,206539.2,234077.76]
["AMSEDC-CD-05-4-ESP 01","Certificados digitales de Representación legal Acreditado-AATL","SEGMENTO 1 y 4","Token virtual","1 año","Todas las zonas","Certificado",133758.72,251595.34399999998,183590.39999999999,168313.05600000001]
["AMSEDC-CD-05-5-ESP 01","Certificados digitales de Representación legal Acreditado-AATL","SEGMENTO 1 y 4","Token físico","2 años","Zona 1","Certificado",203982.04800000001,546946.39999999991,258174,345543.36]
["AMSEDC-CD-05-6-ESP 01","Certificados digitales de Representación legal Acreditado-AATL","SEGMENTO 1 y 4","Token físico","2 años","Zona 2","Certificado",222931.20000000001,546946.39999999991,275385.59999999998,345543.36]
["AMSEDC-CD-05-7-ESP 01","Certificados digitales de Representación legal Acreditado-AATL","SEGMENTO 1 y 4","Token físico","2 años","Zona 3","Certificado",229619.136,546946.39999999991,309808.8,345543.36]
["AMSEDC-CD-05-8-ESP 01","Certificados digitales de Representación legal Acreditado-AATL","SEGMENTO 1 y 4","Token virtual","2 años","Todas las zonas","Certificado",160510.46400000001,503190.68799999997,275385.59999999998,278664]
["AMSEDC-CD-06-1-ESP 01","Certificados digitales de Pertenencia a Empresa Acreditado-AATL","SEGMENTO 1 y 4","Token físico","1 año","Zona 1","Certificado",144905.28,273473.19999999995,172116,234077.76]
["AMSEDC-CD-06-2-ESP 01","Certificados digitales de Pertenencia a Empresa Acreditado-AATL","SEGMENTO 1 y 4","Token físico","1 año","Zona 2","Certificado",159395.80799999999,273473.19999999995,183590.39999999999,234077.76]
["AMSEDC-CD-06-3-ESP 01","Certificados digitales de Pertenencia a Empresa Acreditado-AATL","SEGMENTO 1 y 4","Token físico","1 año","Zona 3","Certificado",183918.24,273473.19999999995,206539.2,234077.76]
["AMSEDC-CD-06-4-ESP 01","Certificados digitales de Pertenencia a Empresa Acreditado-AATL","SEGMENTO 1 y 4","Token virtual","1 año","Todas las zonas","Certificado",133758.72,251595.34399999998,183590.39999999999,168313.05600000001]
["AMSEDC-CD-06-5-ESP 01","Certificados digitales de Pertenencia a Empresa Acreditado-AATL","SEGMENTO 1 y 4","Token físico","2 años","Zona 1","Certificado",203982.04800000001,546946.39999999991,258174,345543.36]
["AMSEDC-CD-06-6-ESP 01","Certificados digitales de Pertenencia a Empresa Acreditado-AATL","SEGMENTO 1 y 4","Token físico","2 años","Zona 2","Certificado",222931.20000000001,546946.39999999991,275385.59999999998,345543.36]
["AMSEDC-CD-06-7-ESP 01","Certificados digitales de Pertenencia a Empresa Acreditado-AATL","SEGMENTO 1 y 4","Token físico","2 años","Zona 3","Certificado",229619.136,546946.39999999991,309808.8,345543.36]
["AMSEDC-CD-06-8-ESP 01","Certificados digitales de Pertenencia a Empresa Acreditado-AATL","SEGMENTO 1 y 4","Token virtual","2 años","Todas las zonas","Certificado",160510.46400000001,503190.68799999997,275385.59999999998,278664]
["AMSEDC-CD-07-1-ESP 01","Certificados Digitales de Función Pública Acreditado-AATL","SEGMENTO 1 y 4","Token físico o Token virtual","1 año","Zona 1","Certificado",144905.28,273473.19999999995,172116,234077.76]
["AMSEDC-CD-07-2-ESP 01","Certificados Digitales de Función Pública Acreditado-AATL","SEGMENTO 1 y 4","Token físico o Token virtual","1 año","Zona 2","Certificado",159395.80799999999,273473.19999999995,183590.39999999999,234077.76]
["AMSEDC-CD-07-3-ESP 01","Certificados Digitales de Función Pública Acreditado-AATL","SEGMENTO 1 y 4","Token físico o Token virtual","1 año","Zona 3","Certificado",183918.24,273473.19999999995,206539.2,234077.76]
["AMSEDC-CD-07-4-ESP 01","Certificados Digitales de Función Pública Acreditado-AATL","SEGMENTO 1 y 4","Token físico o Token virtual","2 años","Zona 1","Certificado",203982.04800000001,546946.39999999991,258174,345543.36]
["AMSEDC-CD-07-5-ESP 01","Certificados Digitales de Función Pública Acreditado-AATL","SEGMENTO 1 y 4","Token físico o Token virtual","2 años","Zona 2","Certificado",222931.20000000001,546946.39999999991,275385.59999999998,345543.36]
["AMSEDC-CD-07-6-ESP 01","Certificados Digitales de Función Pública Acreditado-AATL","SEGMENTO 1 y 4","Token físico o Token virtual","2 años","Zona 3","Certificado",229619.136,546946.39999999991,309808.8,345543.36]
["AMSEDC-CD-09-1","Software como Servicio de gestión de Firmas","SEGMENTO 4","Licencia SaaS","N/A","Todas las zonas","Licencia SaaS/Mes",49176000,1420640,27320000,3278400]
["AMSEDC-CD-09-2","Software como Servicio de gestión de Firmas","SEGMENTO 4","Licencia On Premises","N/A","Todas las zonas","Licencia On Premises/Mes",43712000,1420640,16392000,54640000]
["AMSEDC-CD-09-3","Software como Servicio de gestión de Firmas","SEGMENTO 4","Transacción efectiva (necesario)","N/A","Todas las zonas","Transacción",109.28,10490.88,3562.5279999999998,1311.36]
["AMSEDC-CD-10-1","Servicio de API de integración","SEGMENTO 1 y 4","Valor Licencia mes de API de integración ","N/A","Todas las zonas","Licencia/Mes",1202080,1420640,10928000,1967040]
["AMSEDC-CD-11-1","Envío y recepción del mensaje de datos y de documentos electrónicos transferibles","SEGMENTO 5","Correo electrónico Certificado (1 megabyte)","N/A","Todas las zonas","Correo",819.6,1066.5727999999999,1967.04,"N/A"]
["AMSEDC-CD-12-1","Estampado Cronológico Acreditado","SEGMENTO 1 y 4","Estampa","N/A","Todas las zonas","Estampa",67.753600000000006,194.51839999999999,327.84,1046.9023999999999]
["AMSEDC-CD-12-2","Estampado Cronológico Acreditado","SEGMENTO 2","Estampa","N/A","Todas las zonas","Estampa",67.753600000000006,194.51839999999999,327.84,"N/A"]
["AMSEDC-CD-12-3","Estampado Cronológico Acreditado","SEGMENTO 5","Estampa","N/A","Todas las zonas","Estampa",67.753600000000006,194.51839999999999,327.84,"N/A"]
["AMSEDC-SAT-1-1","Hora de implementación","Todos los segmentos","Profesional","Presencial","Zona 1","Hora",212933,627592,224140,336210]
["AMSEDC-SAT-1-2","Hora de implementación","Todos los segmentos","Profesional","Presencial","Zona 2","Hora",235347,851732,313796,392245]
["AMSEDC-SAT-1-3","Hora de implementación","Todos los segmentos","Profesional","Presencial","Zona 3","Hora",280175,1075872,392245,448280]
["AMSEDC-SAT-1-4","Hora de implementación","Todos los segmentos","Profesional","Virtual","Todas las zonas","Hora",190519,201726,201726,224140]
["AMSEDC-SAT-2-1","Sesión capacitación","Todos los segmentos","Profesional","Virtual","Todas las zonas","Sesión",560350,806904,201726,1353805.6]
["AMSEDC-SAT-2-2","Sesión capacitación","Todos los segmentos","Profesional","Presencial","Zona 1","Sesión",2241400,3137960,224140,1877396.6400000001]
["AMSEDC-SAT-2-3","Sesión capacitación","Todos los segmentos","Profesional","Presencial","Zona 2","Sesión",3362100,4258660,313796,1989466.6400000001]
["AMSEDC-SAT-2-4","Sesión capacitación","Todos los segmentos","Profesional","Presencial","Zona 3","Sesión",4482800,5379360,392245,2175951.12]
["AMSEDC-SAT-3-1","Soporte Técnico","Todos los segmentos","Técnico o tecnologo","Remoto","Todas las zonas","Hora",145691,2.2414000000000001,123277,146587.56]
["AMSEDC-SAT-3-2","Soporte Técnico","Todos los segmentos","Técnico o tecnologo","En sitio","Zona 1","Hora",201726,627592,179312,211924.37]
["AMSEDC-SAT-3-3","Soporte Técnico","Todos los segmentos","Técnico o tecnologo","En sitio","Zona 2","Hora",224140,851732,212933,225933.12]
["AMSEDC-SAT-3-4","Soporte Técnico","Todos los segmentos","Técnico o tecnologo","En sitio","Zona 3","Hora",268968,1075872,235347,249243.68]
["AMSEDC-SAT-3-5","Soporte Técnico","Todos los segmentos","Profesional","Remoto","Todas las zonas","Hora",190519,2.2414000000000001,201726,191975.91]
["AMSEDC-SAT-3-6","Soporte Técnico","Todos los segmentos","Profesional","En sitio","Zona 1","Hora",212933,627592,224140,257312.72]
["AMSEDC-SAT-3-7","Soporte Técnico","Todos los segmentos","Profesional","En sitio","Zona 2","Hora",235347,851732,313796,271321.46999999997]
["AMSEDC-SAT-3-8","Soporte Técnico","Todos los segmentos","Profesional","En sitio","Zona 3","Hora",280175,1075872,392245,294632.03000000003]
["AMSEDC-SAT-4-1","Soporte Técnico Proactivo","Todos los segmentos","Técnico o tecnologo","Remoto","Todas las zonas","Hora",145691,2.2414000000000001,123277,146587.56]
["AMSEDC-SAT-4-2","Soporte Técnico Proactivo","Todos los segmentos","Técnico o tecnologo","En sitio","Zona 1","Hora",201726,627592,179312,211924.37]
["AMSEDC-SAT-4-3","Soporte Técnico Proactivo","Todos los segmentos","Técnico o tecnologo","En sitio","Zona 2","Hora",224140,851732,212933,225933.12]
["AMSEDC-SAT-4-4","Soporte Técnico Proactivo","Todos los segmentos","Técnico o tecnologo","En sitio","Zona 3","Hora",268968,1075872,235347,249243.68]
["AMSEDC-SAT-4-5","Soporte Técnico Proactivo","Todos los segmentos","Profesional","Remoto","Todas las zonas","Hora",145691,2.2414000000000001,201726,191975.91]
["AMSEDC-SAT-4-6","Soporte Técnico Proactivo","Todos los segmentos","Profesional","En sitio","Zona 1","Hora",201726,627592,224140,257312.72]
["AMSEDC-SAT-4-7","Soporte Técnico Proactivo","Todos los segmentos","Profesional","En sitio","Zona 2","Hora",224140,851732,313796,271321.46999999997]
["AMSEDC-SAT-4-8","Soporte Técnico Proactivo","Todos los segmentos","Profesional","En sitio","Zona 3","Hora",268968,1075872,392245,294632.03000000003]
["AMSEDC-SAT-5-1","Soporte Técnico Reactivo","Todos los segmentos","Técnico o tecnologo","Remoto","Todas las zonas","Hora",145691,2.2414000000000001,123277,146587.56]
["AMSEDC-SAT-5-2","Soporte Técnico Reactivo","Todos los segmentos","Técnico o tecnologo","En sitio","Zona 1","Hora",201726,627592,179312,211924.37]
["AMSEDC-SAT-5-3","Soporte Técnico Reactivo","Todos los segmentos","Técnico o tecnologo","En sitio","Zona 2","Hora",224140,851732,212933,225933.12]
["AMSEDC-SAT-5-4","Soporte Técnico Reactivo","Todos los segmentos","Técnico o tecnologo","En sitio","Zona 3","Hora",268968,1075872,235347,249243.68]
["AMSEDC-SAT-5-5","Soporte Técnico Reactivo","Todos los segmentos","Profesional","Remoto","Todas las zonas","Hora",145691,2.2414000000000001,201726,191975.91]
["AMSEDC-SAT-5-6","Soporte Técnico Reactivo","Todos los segmentos","Profesional","En sitio","Zona 1","Hora",201726,627592,224140,257312.72]
["AMSEDC-SAT-5-7","Soporte Técnico Reactivo","Todos los segmentos","Profesional","En sitio","Zona 2","Hora",224140,851732,313796,271321.46999999997]
["AMSEDC-SAT-5-8","Soporte Técnico Reactivo","Todos los segmentos","Profesional","En sitio","Zona 3","Hora",268968,1075872,392245,294632.03000000003]

{"sheet":"Lote 1 SIIF","index":11,"n_rows":95,"n_cols":11,"rows_kept":95,"cut":false,"hidden":true,"merged":[]}
["CODIGO","NOMBRE","Característica 1","Característica 2","Característica 3","Característica 4","Unidad de facturación","GSE SA","Certicámara SA","Camerfirma","Olimpia IT"]
["AMSEDC-CD-01-1","Certificados de Firma Electrónica Acreditado","SEGMENTO 2","N/A","N/A","Todas las zonas","Plataforma mes",7649600,1420640,36062400,"N/A"]
["AMSEDC-CD-01-2","Certificados de Firma Electrónica Acreditado","SEGMENTO 2","N/A","N/A","Todas las zonas","Transacción",874.24,10490.88,3562.5279999999998,"N/A"]
["AMSEDC-CD-02-1","Certificados digitales de persona natural Acreditado","SEGMENTO 1 y 4","Token físico","1 año","Zona 1","Certificado",142064,273200,163920,229488]
["AMSEDC-CD-02-2","Certificados digitales de persona natural Acreditado","SEGMENTO 1 y 4","Token físico","1 año","Zona 2","Certificado",156270.39999999999,273200,174848,229488]
["AMSEDC-CD-02-3","Certificados digitales de persona natural Acreditado","SEGMENTO 1 y 4","Token físico","1 año","Zona 3","Certificado",161734.39999999999,273200,196704,229488]
["AMSEDC-CD-02-4","Certificados digitales de persona natural Acreditado","SEGMENTO 1 y 4","Token virtual","1 año","Todas las zonas","Certificado",131136,251344,174848,165012.79999999999]
["AMSEDC-CD-02-5","Certificados digitales de persona natural Acreditado","SEGMENTO 1 y 4","Token físico","2 años","Zona 1","Certificado",199982.4,327840,245880,338768]
["AMSEDC-CD-02-6","Certificados digitales de persona natural Acreditado","SEGMENTO 1 y 4","Token físico","2 años","Zona 2","Certificado",218560,327840,262272,338768]
["AMSEDC-CD-02-7","Certificados digitales de persona natural Acreditado","SEGMENTO 1 y 4","Token físico","2 años","Zona 3","Certificado",225116.79999999999,327840,295056,338768]
["AMSEDC-CD-02-8","Certificados digitales de persona natural Acreditado","SEGMENTO 1 y 4","Token virtual","2 años","Todas las zonas","Certificado",157363.20000000001,327840,262272,273200]
["AMSEDC-CD-03-1","Certificados digitales de profesional titulado Acreditado","SEGMENTO 1 y 4","Token físico","1 año","Zona 1","Certificado",142064,273200,163920,229488]
["AMSEDC-CD-03-2","Certificados digitales de profesional titulado Acreditado","SEGMENTO 1 y 4","Token físico","1 año","Zona 2","Certificado",156270.39999999999,273200,174848,229488]
["AMSEDC-CD-03-3","Certificados digitales de profesional titulado Acreditado","SEGMENTO 1 y 4","Token físico","1 año","Zona 3","Certificado",180312,273200,196704,229488]
["AMSEDC-CD-03-4","Certificados digitales de profesional titulado Acreditado","SEGMENTO 1 y 4","Token virtual","1 año","Todas las zonas","Certificado",131136,251344,174848,165012.79999999999]
["AMSEDC-CD-03-5","Certificados digitales de profesional titulado Acreditado","SEGMENTO 1 y 4","Token físico","2 años","Zona 1","Certificado",199982.4,327840,245880,338768]
["AMSEDC-CD-03-6","Certificados digitales de profesional titulado Acreditado","SEGMENTO 1 y 4","Token físico","2 años","Zona 2","Certificado",218560,546400,262272,338768]
["AMSEDC-CD-03-7","Certificados digitales de profesional titulado Acreditado","SEGMENTO 1 y 4","Token físico","2 años","Zona 3","Certificado",225116.79999999999,546400,295056,338768]
["AMSEDC-CD-03-8","Certificados digitales de profesional titulado Acreditado","SEGMENTO 1 y 4","Token virtual","2 años","Todas las zonas","Certificado",157363.20000000001,502688,262272,273200]
["AMSEDC-CD-04-1"," Certificados digitales de persona jurídica acreditado","SEGMENTO 1 y 4","Token físico","1 año","Zona 1","Certificado",655680,488481.6,163920,874240]
["AMSEDC-CD-04-2"," Certificados digitales de persona jurídica acreditado","SEGMENTO 1 y 4","Token físico","1 año","Zona 2","Certificado",732176,488481.6,174848,874240]
["AMSEDC-CD-04-3"," Certificados digitales de persona jurídica acreditado","SEGMENTO 1 y 4","Token físico","1 año","Zona 3","Certificado",786816,488481.6,196704,874240]
["AMSEDC-CD-04-4"," Certificados digitales de persona jurídica acreditado","SEGMENTO 1 y 4","Token virtual","1 año","Todas las zonas","Certificado",590112,488481.6,174848,645844.80000000005]
["AMSEDC-CD-04-5"," Certificados digitales de persona jurídica acreditado","SEGMENTO 1 y 4","Token físico","2 años","Zona 1","Certificado",721248,832713.6,245880,1311360]
["AMSEDC-CD-04-6"," Certificados digitales de persona jurídica acreditado","SEGMENTO 1 y 4","Token físico","2 años","Zona 2","Certificado",805393.60000000009,832713.6,262272,1311360]
["AMSEDC-CD-04-7"," Certificados digitales de persona jurídica acreditado","SEGMENTO 1 y 4","Token físico","2 años","Zona 3","Certificado",865497.60000000009,832713.6,295056,1311360]
["AMSEDC-CD-04-8"," Certificados digitales de persona jurídica acreditado","SEGMENTO 1 y 4","Token virtual","2 años","Todas las zonas","Certificado",786816,832713.6,262272,1162739.2]
["AMSEDC-CD-05-1","Certificados digitales de Representación legal Acreditado","SEGMENTO 1 y 4","Token físico","1 año","Zona 1","Certificado",142064,273200,163920,229488]
["AMSEDC-CD-05-2","Certificados digitales de Representación legal Acreditado","SEGMENTO 1 y 4","Token físico","1 año","Zona 2","Certificado",156270.39999999999,273200,174848,229488]
["AMSEDC-CD-05-3","Certificados digitales de Representación legal Acreditado","SEGMENTO 1 y 4","Token físico","1 año","Zona 3","Certificado",180312,273200,196704,229488]
["AMSEDC-CD-05-4","Certificados digitales de Representación legal Acreditado","SEGMENTO 1 y 4","Token virtual","1 año","Todas las zonas","Certificado",131136,251344,174848,165012.79999999999]
["AMSEDC-CD-05-5","Certificados digitales de Representación legal Acreditado","SEGMENTO 1 y 4","Token físico","2 años","Zona 1","Certificado",199982.4,546400,245880,338768]
["AMSEDC-CD-05-6","Certificados digitales de Representación legal Acreditado","SEGMENTO 1 y 4","Token físico","2 años","Zona 2","Certificado",218560,546400,262272,338768]
["AMSEDC-CD-05-7","Certificados digitales de Representación legal Acreditado","SEGMENTO 1 y 4","Token físico","2 años","Zona 3","Certificado",225116.79999999999,546400,295056,338768]
["AMSEDC-CD-05-8","Certificados digitales de Representación legal Acreditado","SEGMENTO 1 y 4","Token virtual","2 años","Todas las zonas","Certificado",157363.20000000001,502688,262272,273200]
["AMSEDC-CD-06-1","Certificados digitales de Pertenencia a Empresa Acreditado","SEGMENTO 1 y 4","Token físico","1 año","Zona 1","Certificado",142064,273200,163920,229488]
["AMSEDC-CD-06-2","Certificados digitales de Pertenencia a Empresa Acreditado","SEGMENTO 1 y 4","Token físico","1 año","Zona 2","Certificado",156270.39999999999,273200,174848,229488]
["AMSEDC-CD-06-3","Certificados digitales de Pertenencia a Empresa Acreditado","SEGMENTO 1 y 4","Token físico","1 año","Zona 3","Certificado",180312,273200,196704,229488]
["AMSEDC-CD-06-4","Certificados digitales de Pertenencia a Empresa Acreditado","SEGMENTO 1 y 4","Token virtual","1 año","Todas las zonas","Certificado",131136,251344,174848,165012.79999999999]
["AMSEDC-CD-06-5","Certificados digitales de Pertenencia a Empresa Acreditado","SEGMENTO 1 y 4","Token físico","2 años","Zona 1","Certificado",199982.4,546400,245880,338768]
["AMSEDC-CD-06-6","Certificados digitales de Pertenencia a Empresa Acreditado","SEGMENTO 1 y 4","Token físico","2 años","Zona 2","Certificado",218560,546400,262272,338768]
["AMSEDC-CD-06-7","Certificados digitales de Pertenencia a Empresa Acreditado","SEGMENTO 1 y 4","Token físico","2 años","Zona 3","Certificado",225116.79999999999,546400,295056,338768]
["AMSEDC-CD-06-8","Certificados digitales de Pertenencia a Empresa Acreditado","SEGMENTO 1 y 4","Token virtual","2 años","Todas las zonas","Certificado",157363.20000000001,502688,262272,273200]
["AMSEDC-CD-07-1","Certificados Digitales de Función Pública Acreditado","SEGMENTO 1 y 4","Token físico o Token virtual","1 año","Zona 1","Certificado",142064,273200,163920,229488]
["AMSEDC-CD-07-2","Certificados Digitales de Función Pública Acreditado","SEGMENTO 1 y 4","Token físico o Token virtual","1 año","Zona 2","Certificado",156270.39999999999,273200,174848,229488]
["AMSEDC-CD-07-3","Certificados Digitales de Función Pública Acreditado","SEGMENTO 1 y 4","Token físico o Token virtual","1 año","Zona 3","Certificado",180312,273200,196704,229488]
["AMSEDC-CD-07-4","Certificados Digitales de Función Pública Acreditado","SEGMENTO 1 y 4","Token físico o Token virtual","2 años","Zona 1","Certificado",199982.4,546400,245880,338768]
["AMSEDC-CD-07-5","Certificados Digitales de Función Pública Acreditado","SEGMENTO 1 y 4","Token físico o Token virtual","2 años","Zona 2","Certificado",218560,546400,262272,338768]
["AMSEDC-CD-07-6","Certificados Digitales de Función Pública Acreditado","SEGMENTO 1 y 4","Token físico o Token virtual","2 años","Zona 3","Certificado",225116.79999999999,546400,295056,338768]
["AMSEDC-CD-07-1-ESP-02","Certificados Digitales de Función Pública Acreditado-SIIF","SEGMENTO 1 y 4","Token físico o Token virtual","1 año","Zona 1","Certificado",144905.28,273473.19999999995,180312,234077.76]
["AMSEDC-CD-07-2-ESP-02","Certificados Digitales de Función Pública Acreditado-SIIF","SEGMENTO 1 y 4","Token físico o Token virtual","1 año","Zona 2","Certificado",159395.80799999999,273473.19999999995,192332.79999999999,234077.76]
["AMSEDC-CD-07-3-ESP-02","Certificados Digitales de Función Pública Acreditado-SIIF","SEGMENTO 1 y 4","Token físico o Token virtual","1 año","Zona 3","Certificado",183918.24,273473.19999999995,216374.40000000002,234077.76]
["AMSEDC-CD-07-4-ESP-02","Certificados Digitales de Función Pública Acreditado-SIIF","SEGMENTO 1 y 4","Token físico o Token virtual","2 años","Zona 1","Certificado",203982.04800000001,546946.39999999991,270468,345543.36]
["AMSEDC-CD-07-5-ESP-02","Certificados Digitales de Función Pública Acreditado-SIIF","SEGMENTO 1 y 4","Token físico o Token virtual","2 años","Zona 2","Certificado",222931.20000000001,546946.39999999991,288499.20000000001,345543.36]
["AMSEDC-CD-07-6-ESP-02","Certificados Digitales de Función Pública Acreditado-SIIF","SEGMENTO 1 y 4","Token físico o Token virtual","2 años","Zona 3","Certificado",229619.136,546946.39999999991,324561.59999999998,345543.36]
["AMSEDC-CD-09-1","Software como Servicio de gestión de Firmas","SEGMENTO 4","Licencia SaaS","N/A","Todas las zonas","Licencia SaaS/Mes",49176000,1420640,27320000,3278400]
["AMSEDC-CD-09-2","Software como Servicio de gestión de Firmas","SEGMENTO 4","Licencia On Premises","N/A","Todas las zonas","Licencia On Premises/Mes",43712000,1420640,16392000,54640000]
["AMSEDC-CD-09-3","Software como Servicio de gestión de Firmas","SEGMENTO 4","Transacción efectiva (necesario)","N/A","Todas las zonas","Transacción",109.28,10490.88,3562.5279999999998,1311.36]
["AMSEDC-CD-10-1","Servicio de API de integración","SEGMENTO 1 y 4","Valor Licencia mes de API de integración ","N/A","Todas las zonas","Licencia/Mes",1202080,1420640,10928000,1967040]
["AMSEDC-CD-11-1","Envío y recepción del mensaje de datos y de documentos electrónicos transferibles","SEGMENTO 5","Correo electrónico Certificado (1 megabyte)","N/A","Todas las zonas","Correo",819.6,1066.5727999999999,1967.04,"N/A"]
["AMSEDC-CD-12-1","Estampado Cronológico Acreditado","SEGMENTO 1 y 4","Estampa","N/A","Todas las zonas","Estampa",67.753600000000006,194.51839999999999,327.84,1046.9023999999999]
["AMSEDC-CD-12-2","Estampado Cronológico Acreditado","SEGMENTO 2","Estampa","N/A","Todas las zonas","Estampa",67.753600000000006,194.51839999999999,327.84,"N/A"]
["AMSEDC-CD-12-3","Estampado Cronológico Acreditado","SEGMENTO 5","Estampa","N/A","Todas las zonas","Estampa",67.753600000000006,194.51839999999999,327.84,"N/A"]
["AMSEDC-SAT-1-1","Hora de implementación","Todos los segmentos","Profesional","Presencial","Zona 1","Hora",212933,627592,224140,336210]
["AMSEDC-SAT-1-2","Hora de implementación","Todos los segmentos","Profesional","Presencial","Zona 2","Hora",235347,851732,313796,392245]
["AMSEDC-SAT-1-3","Hora de implementación","Todos los segmentos","Profesional","Presencial","Zona 3","Hora",280175,1075872,392245,448280]
["AMSEDC-SAT-1-4","Hora de implementación","Todos los segmentos","Profesional","Virtual","Todas las zonas","Hora",190519,201726,201726,224140]
["AMSEDC-SAT-2-1","Sesión capacitación","Todos los segmentos","Profesional","Virtual","Todas las zonas","Sesión",560350,806904,201726,1353805.6]
["AMSEDC-SAT-2-2","Sesión capacitación","Todos los segmentos","Profesional","Presencial","Zona 1","Sesión",2241400,3137960,224140,1877396.6400000001]
["AMSEDC-SAT-2-3","Sesión capacitación","Todos los segmentos","Profesional","Presencial","Zona 2","Sesión",3362100,4258660,313796,1989466.6400000001]
["AMSEDC-SAT-2-4","Sesión capacitación","Todos los segmentos","Profesional","Presencial","Zona 3","Sesión",4482800,5379360,392245,2175951.12]
["AMSEDC-SAT-3-1","Soporte Técnico","Todos los segmentos","Técnico o tecnologo","Remoto","Todas las zonas","Hora",145691,2.2414000000000001,123277,146587.56]
["AMSEDC-SAT-3-2","Soporte Técnico","Todos los segmentos","Técnico o tecnologo","En sitio","Zona 1","Hora",201726,627592,179312,211924.37]
["AMSEDC-SAT-3-3","Soporte Técnico","Todos los segmentos","Técnico o tecnologo","En sitio","Zona 2","Hora",224140,851732,212933,225933.12]
["AMSEDC-SAT-3-4","Soporte Técnico","Todos los segmentos","Técnico o tecnologo","En sitio","Zona 3","Hora",268968,1075872,235347,249243.68]
["AMSEDC-SAT-3-5","Soporte Técnico","Todos los segmentos","Profesional","Remoto","Todas las zonas","Hora",190519,2.2414000000000001,201726,191975.91]
["AMSEDC-SAT-3-6","Soporte Técnico","Todos los segmentos","Profesional","En sitio","Zona 1","Hora",212933,627592,224140,257312.72]
["AMSEDC-SAT-3-7","Soporte Técnico","Todos los segmentos","Profesional","En sitio","Zona 2","Hora",235347,851732,313796,271321.46999999997]
["AMSEDC-SAT-3-8","Soporte Técnico","Todos los segmentos","Profesional","En sitio","Zona 3","Hora",280175,1075872,392245,294632.03000000003]
["AMSEDC-SAT-4-1","Soporte Técnico Proactivo","Todos los segmentos","Técnico o tecnologo","Remoto","Todas las zonas","Hora",145691,2.2414000000000001,123277,146587.56]
["AMSEDC-SAT-4-2","Soporte Técnico Proactivo","Todos los segmentos","Técnico o tecnologo","En sitio","Zona 1","Hora",201726,627592,179312,211924.37]
["AMSEDC-SAT-4-3","Soporte Técnico Proactivo","Todos los segmentos","Técnico o tecnologo","En sitio","Zona 2","Hora",224140,851732,212933,225933.12]
["AMSEDC-SAT-4-4","Soporte Técnico Proactivo","Todos los segmentos","Técnico o tecnologo","En sitio","Zona 3","Hora",268968,1075872,235347,249243.68]
["AMSEDC-SAT-4-5","Soporte Técnico Proactivo","Todos los segmentos","Profesional","Remoto","Todas las zonas","Hora",145691,2.2414000000000001,201726,191975.91]
["AMSEDC-SAT-4-6","Soporte Técnico Proactivo","Todos los segmentos","Profesional","En sitio","Zona 1","Hora",201726,627592,224140,257312.72]
["AMSEDC-SAT-4-7","Soporte Técnico Proactivo","Todos los segmentos","Profesional","En sitio","Zona 2","Hora",224140,851732,313796,271321.46999999997]
["AMSEDC-SAT-4-8","Soporte Técnico Proactivo","Todos los segmentos","Profesional","En sitio","Zona 3","Hora",268968,1075872,392245,294632.03000000003]
["AMSEDC-SAT-5-1","Soporte Técnico Reactivo","Todos los segmentos","Técnico o tecnologo","Remoto","Todas las zonas","Hora",145691,2.2414000000000001,123277,146587.56]
["AMSEDC-SAT-5-2","Soporte Técnico Reactivo","Todos los segmentos","Técnico o tecnologo","En sitio","Zona 1","Hora",201726,627592,179312,211924.37]
["AMSEDC-SAT-5-3","Soporte Técnico Reactivo","Todos los segmentos","Técnico o tecnologo","En sitio","Zona 2","Hora",224140,851732,212933,225933.12]
["AMSEDC-SAT-5-4","Soporte Técnico Reactivo","Todos los segmentos","Técnico o tecnologo","En sitio","Zona 3","Hora",268968,1075872,235347,249243.68]
["AMSEDC-SAT-5-5","Soporte Técnico Reactivo","Todos los segmentos","Profesional","Remoto","Todas las zonas","Hora",145691,2.2414000000000001,201726,191975.91]
["AMSEDC-SAT-5-6","Soporte Técnico Reactivo","Todos los segmentos","Profesional","En sitio","Zona 1","Hora",201726,627592,224140,257312.72]
["AMSEDC-SAT-5-7","Soporte Técnico Reactivo","Todos los segmentos","Profesional","En sitio","Zona 2","Hora",224140,851732,313796,271321.46999999997]
["AMSEDC-SAT-5-8","Soporte Técnico Reactivo","Todos los segmentos","Profesional","En sitio","Zona 3","Hora",268968,1075872,392245,294632.03000000003]

{"sheet":"Lote 1 AATL + SIIF","index":12,"n_rows":95,"n_cols":11,"rows_kept":95,"cut":false,"hidden":true,"merged":[]}
["CODIGO","NOMBRE","Característica 1","Característica 2","Característica 3","Característica 4","Unidad de facturación","GSE SA","Certicámara SA","Camerfirma","Olimpia IT"]
["AMSEDC-CD-01-1","Certificados de Firma Electrónica Acreditado","SEGMENTO 2","N/A","N/A","Todas las zonas","Plataforma mes",7649600,1420640,36062400,"N/A"]
["AMSEDC-CD-01-2","Certificados de Firma Electrónica Acreditado","SEGMENTO 2","N/A","N/A","Todas las zonas","Transacción",874.24,10490.88,3562.5279999999998,"N/A"]
["AMSEDC-CD-02-1-ESP 01","Certificados digitales de persona natural Acreditado-AATL","SEGMENTO 1 y 4","Token físico","1 año","Zona 1","Certificado",144905.28,273473.19999999995,172116,234077.76]
["AMSEDC-CD-02-2-ESP 01","Certificados digitales de persona natural Acreditado-AATL","SEGMENTO 1 y 4","Token físico","1 año","Zona 2","Certificado",159395.80799999999,273473.19999999995,183590.39999999999,234077.76]
["AMSEDC-CD-02-3-ESP 01","Certificados digitales de persona natural Acreditado-AATL","SEGMENTO 1 y 4","Token físico","1 año","Zona 3","Certificado",164969.08799999999,273473.19999999995,206539.2,234077.76]
["AMSEDC-CD-02-4-ESP 01","Certificados digitales de persona natural Acreditado-AATL","SEGMENTO 1 y 4","Token virtual","1 año","Todas las zonas","Certificado",133758.72,251595.34399999998,183590.39999999999,168313.05600000001]
["AMSEDC-CD-02-5-ESP 01","Certificados digitales de persona natural Acreditado-AATL","SEGMENTO 1 y 4","Token físico","2 años","Zona 1","Certificado",203982.04800000001,328167.83999999991,258174,345543.36]
["AMSEDC-CD-02-6-ESP 01","Certificados digitales de persona natural Acreditado-AATL","SEGMENTO 1 y 4","Token físico","2 años","Zona 2","Certificado",222931.20000000001,328167.83999999991,275385.59999999998,345543.36]
["AMSEDC-CD-02-7-ESP 01","Certificados digitales de persona natural Acreditado-AATL","SEGMENTO 1 y 4","Token físico","2 años","Zona 3","Certificado",229619.136,328167.83999999991,309808.8,345543.36]
["AMSEDC-CD-02-8-ESP 01","Certificados digitales de persona natural Acreditado-AATL","SEGMENTO 1 y 4","Token virtual","2 años","Todas las zonas","Certificado",160510.46400000001,328167.83999999991,275385.59999999998,278664]
["AMSEDC-CD-03-1-ESP 01","Certificados digitales de profesional titulado Acreditado-AATL","SEGMENTO 1 y 4","Token físico","1 año","Zona 1","Certificado",144905.28,273473.19999999995,172116,234077.76]
["AMSEDC-CD-03-2-ESP 01","Certificados digitales de profesional titulado Acreditado-AATL","SEGMENTO 1 y 4","Token físico","1 año","Zona 2","Certificado",159395.80799999999,273473.19999999995,183590.39999999999,234077.76]
["AMSEDC-CD-03-3-ESP 01","Certificados digitales de profesional titulado Acreditado-AATL","SEGMENTO 1 y 4","Token físico","1 año","Zona 3","Certificado",183918.24,273473.19999999995,206539.2,234077.76]
["AMSEDC-CD-03-4-ESP 01","Certificados digitales de profesional titulado Acreditado-AATL","SEGMENTO 1 y 4","Token virtual","1 año","Todas las zonas","Certificado",133758.72,251595.34399999998,183590.39999999999,168313.05600000001]
["AMSEDC-CD-03-5-ESP 01","Certificados digitales de profesional titulado Acreditado-AATL","SEGMENTO 1 y 4","Token físico","2 años","Zona 1","Certificado",203982.04800000001,328167.83999999991,258174,345543.36]
["AMSEDC-CD-03-6-ESP 01","Certificados digitales de profesional titulado Acreditado-AATL","SEGMENTO 1 y 4","Token físico","2 años","Zona 2","Certificado",222931.20000000001,546946.39999999991,275385.59999999998,345543.36]
["AMSEDC-CD-03-7-ESP 01","Certificados digitales de profesional titulado Acreditado-AATL","SEGMENTO 1 y 4","Token físico","2 años","Zona 3","Certificado",229619.136,546946.39999999991,309808.8,345543.36]
["AMSEDC-CD-03-8-ESP 01","Certificados digitales de profesional titulado Acreditado-AATL","SEGMENTO 1 y 4","Token virtual","2 años","Todas las zonas","Certificado",160510.46400000001,503190.68799999997,275385.59999999998,278664]
["AMSEDC-CD-04-1-ESP 01"," Certificados digitales de persona jurídica acreditado-AATL","SEGMENTO 1 y 4","Token físico","1 año","Zona 1","Certificado",668793.59999999998,488970.08159999992,172116,891724.80000000005]
["AMSEDC-CD-04-2-ESP 01"," Certificados digitales de persona jurídica acreditado-AATL","SEGMENTO 1 y 4","Token físico","1 año","Zona 2","Certificado",746819.52,488970.08159999992,183590.39999999999,891724.80000000005]
["AMSEDC-CD-04-3-ESP 01"," Certificados digitales de persona jurídica acreditado-AATL","SEGMENTO 1 y 4","Token físico","1 año","Zona 3","Certificado",802552.31999999995,488970.08159999992,206539.2,891724.80000000005]
["AMSEDC-CD-04-4-ESP 01"," Certificados digitales de persona jurídica acreditado-AATL","SEGMENTO 1 y 4","Token virtual","1 año","Todas las zonas","Certificado",601914.24,488970.08159999992,183590.39999999999,658761.696]
["AMSEDC-CD-04-5-ESP 01"," Certificados digitales de persona jurídica acreditado-AATL","SEGMENTO 1 y 4","Token físico","2 años","Zona 1","Certificado",735672.96,833546.31359999988,258174,1337587.2]
["AMSEDC-CD-04-6-ESP 01"," Certificados digitales de persona jurídica acreditado-AATL","SEGMENTO 1 y 4","Token físico","2 años","Zona 2","Certificado",821501.47200000007,833546.31359999988,275385.59999999998,1337587.2]
["AMSEDC-CD-04-7-ESP 01"," Certificados digitales de persona jurídica acreditado-AATL","SEGMENTO 1 y 4","Token físico","2 años","Zona 3","Certificado",882807.55200000014,833546.31359999988,309808.8,1337587.2]
["AMSEDC-CD-04-8-ESP 01"," Certificados digitales de persona jurídica acreditado-AATL","SEGMENTO 1 y 4","Token virtual","2 años","Todas las zonas","Certificado",802552.31999999995,833546.31359999988,275385.59999999998,1185993.9839999999]
["AMSEDC-CD-05-1-ESP 01","Certificados digitales de Representación legal Acreditado-AATL","SEGMENTO 1 y 4","Token físico","1 año","Zona 1","Certificado",144905.28,273473.19999999995,172116,234077.76]
["AMSEDC-CD-05-2-ESP 01","Certificados digitales de Representación legal Acreditado-AATL","SEGMENTO 1 y 4","Token físico","1 año","Zona 2","Certificado",159395.80799999999,273473.19999999995,183590.39999999999,234077.76]
["AMSEDC-CD-05-3-ESP 01","Certificados digitales de Representación legal Acreditado-AATL","SEGMENTO 1 y 4","Token físico","1 año","Zona 3","Certificado",183918.24,273473.19999999995,206539.2,234077.76]
["AMSEDC-CD-05-4-ESP 01","Certificados digitales de Representación legal Acreditado-AATL","SEGMENTO 1 y 4","Token virtual","1 año","Todas las zonas","Certificado",133758.72,251595.34399999998,183590.39999999999,168313.05600000001]
["AMSEDC-CD-05-5-ESP 01","Certificados digitales de Representación legal Acreditado-AATL","SEGMENTO 1 y 4","Token físico","2 años","Zona 1","Certificado",203982.04800000001,546946.39999999991,258174,345543.36]
["AMSEDC-CD-05-6-ESP 01","Certificados digitales de Representación legal Acreditado-AATL","SEGMENTO 1 y 4","Token físico","2 años","Zona 2","Certificado",222931.20000000001,546946.39999999991,275385.59999999998,345543.36]
["AMSEDC-CD-05-7-ESP 01","Certificados digitales de Representación legal Acreditado-AATL","SEGMENTO 1 y 4","Token físico","2 años","Zona 3","Certificado",229619.136,546946.39999999991,309808.8,345543.36]
["AMSEDC-CD-05-8-ESP 01","Certificados digitales de Representación legal Acreditado-AATL","SEGMENTO 1 y 4","Token virtual","2 años","Todas las zonas","Certificado",160510.46400000001,503190.68799999997,275385.59999999998,278664]
["AMSEDC-CD-06-1-ESP 01","Certificados digitales de Pertenencia a Empresa Acreditado-AATL","SEGMENTO 1 y 4","Token físico","1 año","Zona 1","Certificado",144905.28,273473.19999999995,172116,234077.76]
["AMSEDC-CD-06-2-ESP 01","Certificados digitales de Pertenencia a Empresa Acreditado-AATL","SEGMENTO 1 y 4","Token físico","1 año","Zona 2","Certificado",159395.80799999999,273473.19999999995,183590.39999999999,234077.76]
["AMSEDC-CD-06-3-ESP 01","Certificados digitales de Pertenencia a Empresa Acreditado-AATL","SEGMENTO 1 y 4","Token físico","1 año","Zona 3","Certificado",183918.24,273473.19999999995,206539.2,234077.76]
["AMSEDC-CD-06-4-ESP 01","Certificados digitales de Pertenencia a Empresa Acreditado-AATL","SEGMENTO 1 y 4","Token virtual","1 año","Todas las zonas","Certificado",133758.72,251595.34399999998,183590.39999999999,168313.05600000001]
["AMSEDC-CD-06-5-ESP 01","Certificados digitales de Pertenencia a Empresa Acreditado-AATL","SEGMENTO 1 y 4","Token físico","2 años","Zona 1","Certificado",203982.04800000001,546946.39999999991,258174,345543.36]
["AMSEDC-CD-06-6-ESP 01","Certificados digitales de Pertenencia a Empresa Acreditado-AATL","SEGMENTO 1 y 4","Token físico","2 años","Zona 2","Certificado",222931.20000000001,546946.39999999991,275385.59999999998,345543.36]
["AMSEDC-CD-06-7-ESP 01","Certificados digitales de Pertenencia a Empresa Acreditado-AATL","SEGMENTO 1 y 4","Token físico","2 años","Zona 3","Certificado",229619.136,546946.39999999991,309808.8,345543.36]
["AMSEDC-CD-06-8-ESP 01","Certificados digitales de Pertenencia a Empresa Acreditado-AATL","SEGMENTO 1 y 4","Token virtual","2 años","Todas las zonas","Certificado",160510.46400000001,503190.68799999997,275385.59999999998,278664]
["AMSEDC-CD-07-1-ESP 01","Certificados Digitales de Función Pública Acreditado-AATL","SEGMENTO 1 y 4","Token físico o Token virtual","1 año","Zona 1","Certificado",144905.28,273473.19999999995,172116,234077.76]
["AMSEDC-CD-07-2-ESP 01","Certificados Digitales de Función Pública Acreditado-AATL","SEGMENTO 1 y 4","Token físico o Token virtual","1 año","Zona 2","Certificado",159395.80799999999,273473.19999999995,183590.39999999999,234077.76]
["AMSEDC-CD-07-3-ESP 01","Certificados Digitales de Función Pública Acreditado-AATL","SEGMENTO 1 y 4","Token físico o Token virtual","1 año","Zona 3","Certificado",183918.24,273473.19999999995,206539.2,234077.76]
["AMSEDC-CD-07-4-ESP 01","Certificados Digitales de Función Pública Acreditado-AATL","SEGMENTO 1 y 4","Token físico o Token virtual","2 años","Zona 1","Certificado",203982.04800000001,546946.39999999991,258174,345543.36]
["AMSEDC-CD-07-5-ESP 01","Certificados Digitales de Función Pública Acreditado-AATL","SEGMENTO 1 y 4","Token físico o Token virtual","2 años","Zona 2","Certificado",222931.20000000001,546946.39999999991,275385.59999999998,345543.36]
["AMSEDC-CD-07-6-ESP 01","Certificados Digitales de Función Pública Acreditado-AATL","SEGMENTO 1 y 4","Token físico o Token virtual","2 años","Zona 3","Certificado",229619.136,546946.39999999991,309808.8,345543.36]
["AMSEDC-CD-07-1-ESP 01-02","Certificados Digitales de Función Pública Acreditado-AATL-SIIF Nación","SEGMENTO 1 y 4","Token físico o Token virtual","1 año","Zona 1","Certificado",147803.38560000001,273746.67319999996,189327.6,238759.31520000001]
["AMSEDC-CD-07-2-ESP 01-02","Certificados Digitales de Función Pública Acreditado-AATL-SIIF Nación","SEGMENTO 1 y 4","Token físico o Token virtual","1 año","Zona 2","Certificado",162583.72416000001,273746.67319999996,201949.44000000003,238759.31520000001]
["AMSEDC-CD-07-3-ESP 01-02","Certificados Digitales de Función Pública Acreditado-AATL-SIIF Nación","SEGMENTO 1 y 4","Token físico o Token virtual","1 año","Zona 3","Certificado",187596.6048,273746.67319999996,227193.12000000002,238759.31520000001]
["AMSEDC-CD-07-4-ESP 01-02","Certificados Digitales de Función Pública Acreditado-AATL-SIIF Nación","SEGMENTO 1 y 4","Token físico o Token virtual","2 años","Zona 1","Certificado",208061.68896,547493.34639999992,283991.40000000002,352454.22720000002]
["AMSEDC-CD-07-5-ESP 01-02","Certificados Digitales de Función Pública Acreditado-AATL-SIIF Nación","SEGMENTO 1 y 4","Token físico o Token virtual","2 años","Zona 2","Certificado",227389.82399999999,547493.34639999992,302924.15999999997,352454.22720000002]
["AMSEDC-CD-07-6-ESP 01-02","Certificados Digitales de Función Pública Acreditado-AATL-SIIF Nación","SEGMENTO 1 y 4","Token físico o Token virtual","2 años","Zona 3","Certificado",234211.51871999999,547493.34639999992,340789.68,352454.22720000002]
["AMSEDC-CD-09-1","Software como Servicio de gestión de Firmas","SEGMENTO 4","Licencia SaaS","N/A","Todas las zonas","Licencia SaaS/Mes",49176000,1420640,27320000,3278400]
["AMSEDC-CD-09-2","Software como Servicio de gestión de Firmas","SEGMENTO 4","Licencia On Premises","N/A","Todas las zonas","Licencia On Premises/Mes",43712000,1420640,16392000,54640000]
["AMSEDC-CD-09-3","Software como Servicio de gestión de Firmas","SEGMENTO 4","Transacción efectiva (necesario)","N/A","Todas las zonas","Transacción",109.28,10490.88,3562.5279999999998,1311.36]
["AMSEDC-CD-10-1","Servicio de API de integración","SEGMENTO 1 y 4","Valor Licencia mes de API de integración ","N/A","Todas las zonas","Licencia/Mes",1202080,1420640,10928000,1967040]
["AMSEDC-CD-11-1","Envío y recepción del mensaje de datos y de documentos electrónicos transferibles","SEGMENTO 5","Correo electrónico Certificado (1 megabyte)","N/A","Todas las zonas","Correo",819.6,1066.5727999999999,1967.04,"N/A"]
["AMSEDC-CD-12-1","Estampado Cronológico Acreditado","SEGMENTO 1 y 4","Estampa","N/A","Todas las zonas","Estampa",67.753600000000006,194.51839999999999,327.84,1046.9023999999999]
["AMSEDC-CD-12-2","Estampado Cronológico Acreditado","SEGMENTO 2","Estampa","N/A","Todas las zonas","Estampa",67.753600000000006,194.51839999999999,327.84,"N/A"]
["AMSEDC-CD-12-3","Estampado Cronológico Acreditado","SEGMENTO 5","Estampa","N/A","Todas las zonas","Estampa",67.753600000000006,194.51839999999999,327.84,"N/A"]
["AMSEDC-SAT-1-1","Hora de implementación","Todos los segmentos","Profesional","Presencial","Zona 1","Hora",212933,627592,224140,336210]
["AMSEDC-SAT-1-2","Hora de implementación","Todos los segmentos","Profesional","Presencial","Zona 2","Hora",235347,851732,313796,392245]
["AMSEDC-SAT-1-3","Hora de implementación","Todos los segmentos","Profesional","Presencial","Zona 3","Hora",280175,1075872,392245,448280]
["AMSEDC-SAT-1-4","Hora de implementación","Todos los segmentos","Profesional","Virtual","Todas las zonas","Hora",190519,201726,201726,224140]
["AMSEDC-SAT-2-1","Sesión capacitación","Todos los segmentos","Profesional","Virtual","Todas las zonas","Sesión",560350,806904,201726,1353805.6]
["AMSEDC-SAT-2-2","Sesión capacitación","Todos los segmentos","Profesional","Presencial","Zona 1","Sesión",2241400,3137960,224140,1877396.6400000001]
["AMSEDC-SAT-2-3","Sesión capacitación","Todos los segmentos","Profesional","Presencial","Zona 2","Sesión",3362100,4258660,313796,1989466.6400000001]
["AMSEDC-SAT-2-4","Sesión capacitación","Todos los segmentos","Profesional","Presencial","Zona 3","Sesión",4482800,5379360,392245,2175951.12]
["AMSEDC-SAT-3-1","Soporte Técnico","Todos los segmentos","Técnico o tecnologo","Remoto","Todas las zonas","Hora",145691,2.2414000000000001,123277,146587.56]
["AMSEDC-SAT-3-2","Soporte Técnico","Todos los segmentos","Técnico o tecnologo","En sitio","Zona 1","Hora",201726,627592,179312,211924.37]
["AMSEDC-SAT-3-3","Soporte Técnico","Todos los segmentos","Técnico o tecnologo","En sitio","Zona 2","Hora",224140,851732,212933,225933.12]
["AMSEDC-SAT-3-4","Soporte Técnico","Todos los segmentos","Técnico o tecnologo","En sitio","Zona 3","Hora",268968,1075872,235347,249243.68]
["AMSEDC-SAT-3-5","Soporte Técnico","Todos los segmentos","Profesional","Remoto","Todas las zonas","Hora",190519,2.2414000000000001,201726,191975.91]
["AMSEDC-SAT-3-6","Soporte Técnico","Todos los segmentos","Profesional","En sitio","Zona 1","Hora",212933,627592,224140,257312.72]
["AMSEDC-SAT-3-7","Soporte Técnico","Todos los segmentos","Profesional","En sitio","Zona 2","Hora",235347,851732,313796,271321.46999999997]
["AMSEDC-SAT-3-8","Soporte Técnico","Todos los segmentos","Profesional","En sitio","Zona 3","Hora",280175,1075872,392245,294632.03000000003]
["AMSEDC-SAT-4-1","Soporte Técnico Proactivo","Todos los segmentos","Técnico o tecnologo","Remoto","Todas las zonas","Hora",145691,2.2414000000000001,123277,146587.56]
["AMSEDC-SAT-4-2","Soporte Técnico Proactivo","Todos los segmentos","Técnico o tecnologo","En sitio","Zona 1","Hora",201726,627592,179312,211924.37]
["AMSEDC-SAT-4-3","Soporte Técnico Proactivo","Todos los segmentos","Técnico o tecnologo","En sitio","Zona 2","Hora",224140,851732,212933,225933.12]
["AMSEDC-SAT-4-4","Soporte Técnico Proactivo","Todos los segmentos","Técnico o tecnologo","En sitio","Zona 3","Hora",268968,1075872,235347,249243.68]
["AMSEDC-SAT-4-5","Soporte Técnico Proactivo","Todos los segmentos","Profesional","Remoto","Todas las zonas","Hora",145691,2.2414000000000001,201726,191975.91]
["AMSEDC-SAT-4-6","Soporte Técnico Proactivo","Todos los segmentos","Profesional","En sitio","Zona 1","Hora",201726,627592,224140,257312.72]
["AMSEDC-SAT-4-7","Soporte Técnico Proactivo","Todos los segmentos","Profesional","En sitio","Zona 2","Hora",224140,851732,313796,271321.46999999997]
["AMSEDC-SAT-4-8","Soporte Técnico Proactivo","Todos los segmentos","Profesional","En sitio","Zona 3","Hora",268968,1075872,392245,294632.03000000003]
["AMSEDC-SAT-5-1","Soporte Técnico Reactivo","Todos los segmentos","Técnico o tecnologo","Remoto","Todas las zonas","Hora",145691,2.2414000000000001,123277,146587.56]
["AMSEDC-SAT-5-2","Soporte Técnico Reactivo","Todos los segmentos","Técnico o tecnologo","En sitio","Zona 1","Hora",201726,627592,179312,211924.37]
["AMSEDC-SAT-5-3","Soporte Técnico Reactivo","Todos los segmentos","Técnico o tecnologo","En sitio","Zona 2","Hora",224140,851732,212933,225933.12]
["AMSEDC-SAT-5-4","Soporte Técnico Reactivo","Todos los segmentos","Técnico o tecnologo","En sitio","Zona 3","Hora",268968,1075872,235347,249243.68]
["AMSEDC-SAT-5-5","Soporte Técnico Reactivo","Todos los segmentos","Profesional","Remoto","Todas las zonas","Hora",145691,2.2414000000000001,201726,191975.91]
["AMSEDC-SAT-5-6","Soporte Técnico Reactivo","Todos los segmentos","Profesional","En sitio","Zona 1","Hora",201726,627592,224140,257312.72]
["AMSEDC-SAT-5-7","Soporte Técnico Reactivo","Todos los segmentos","Profesional","En sitio","Zona 2","Hora",224140,851732,313796,271321.46999999997]
["AMSEDC-SAT-5-8","Soporte Técnico Reactivo","Todos los segmentos","Profesional","En sitio","Zona 3","Hora",268968,1075872,392245,294632.03000000003]

{"sheet":"Lote 2","index":13,"n_rows":47,"n_cols":9,"rows_kept":47,"cut":false,"hidden":true,"merged":[]}
["CODIGO","NOMBRE","Característica 1","Característica 2","Característica 3","Unidad de facturación","GSE SA","Certicámara SA","Camerfirma"]
["AMSEDC-SSL-01-1","Certificado digital de sitio web SSL DV Validación Dominio ","Virtual","1 año","Todas las Zonas","Certificado",163920,103816,109280]
["AMSEDC-SSL-01-2","Certificado digital de sitio web SSL DV Validación Dominio ","Virtual","2 años","Todas las Zonas","Certificado",327840,207632,218560]
["AMSEDC-SSL-02 -1","Certificado digital de sitio web SSL OV Validación Organización","Certificado SSL OV","1 año","Todas las Zonas","Certificado",1311360,1523729.2879999999,273200]
["AMSEDC-SSL-02 -2","Certificado digital de sitio web SSL OV Validación Organización","Certificado SSL - OV - Subdominio SAN","1 año","Todas las Zonas","Certificado",983520,1688376,273200]
["AMSEDC-SSL-02 -3","Certificado digital de sitio web SSL OV Validación Organización","Certificado SSL - OV - Wilcard","1 año","Todas las Zonas","Certificado",1857760,7448777.2368000001,1529920]
["AMSEDC-SSL-02 -4","Certificado digital de sitio web SSL OV Validación Organización","Certificado SSL OV","2 años","Todas las Zonas","Certificado",2622720,3047458.5759999999,546400]
["AMSEDC-SSL-02 -5","Certificado digital de sitio web SSL OV Validación Organización","Certificado SSL - OV - Subdominio SAN","2 años","Todas las Zonas","Certificado",1967040,3376752,546400]
["AMSEDC-SSL-02 -6","Certificado digital de sitio web SSL OV Validación Organización","Certificado SSL - OV - Wilcard","2 años","Todas las Zonas","Certificado",3715520,14897554.4736,3059840]
["AMSEDC-SSL-02 -7","Certificado digital de sitio web SSL OV Validación Organización","Funcionalidad escaneo diario de malware","1 año","Todas las Zonas","Certificado",3278400,2185600,601040]
["AMSEDC-SSL-02 -8","Certificado digital de sitio web SSL OV Validación Organización","Funcionalidad escaneo diario de malware","2 años","Todas las Zonas","Certificado",6556800,4371200,1202080]
["AMSEDC-SSL-03-1","Certificado digital de sitio web SSL EV Validación Extendida","Certificado SSL EV","1 año","Todas las Zonas","Certificado",2185600,5350159.7456,764960]
["AMSEDC-SSL-03-2","Certificado digital de sitio web SSL EV Validación Extendida","Certificado SSL EV - Subdominio SAN","1 año","Todas las Zonas","Certificado",1311360,3567992,764960]
["AMSEDC-SSL-03-3","Certificado digital de sitio web SSL EV Validación Extendida","Certificado SSL EV","2 años","Todas las Zonas","Certificado",4371200,10700319.4912,1529920]
["AMSEDC-SSL-03-4","Certificado digital de sitio web SSL EV Validación Extendida","Certificado SSL EV - Subdominio SAN","2 años","Todas las Zonas","Certificado",2622720,7135984,1529920]
["AMSEDC-SAT-1-1","Hora de implementación","Profesional","Presencial","Zona 1","Hora",201726,627592,224140]
["AMSEDC-SAT-1-2","Hora de implementación","Profesional","Presencial","Zona 2","Hora",224140,851732,313796]
["AMSEDC-SAT-1-3","Hora de implementación","Profesional","Presencial","Zona 3","Hora",268968,1075872,392245]
["AMSEDC-SAT-1-4","Hora de implementación","Profesional","Virtual","Todas las zonas","Hora",190519,201726,201726]
["AMSEDC-SAT-2-1","Sesión capacitación","Profesional","Virtual","Todas las zonas","Sesión",560350,806904,201726]
["AMSEDC-SAT-2-2","Sesión capacitación","Profesional","Presencial","Zona 1","Sesión",2241400,3137960,224140]
["AMSEDC-SAT-2-3","Sesión capacitación","Profesional","Presencial","Zona 2","Sesión",3362100,4258660,313796]
["AMSEDC-SAT-2-4","Sesión capacitación","Profesional","Presencial","Zona 3","Sesión",4482800,5379360,392245]
["AMSEDC-SAT-3 -1","Soporte Técnico","Técnico o tecnologo","Remoto","Todas las zonas","Hora",145691,2.2414000000000001,123277]
["AMSEDC-SAT-3 -2","Soporte Técnico","Técnico o tecnologo","En sitio","Zona 1","Hora",201726,627592,179312]
["AMSEDC-SAT-3 -3","Soporte Técnico","Técnico o tecnologo","En sitio","Zona 2","Hora",224140,851732,212933]
["AMSEDC-SAT-3 -4","Soporte Técnico","Técnico o tecnologo","En sitio","Zona 3","Hora",268968,1075872,235347]
["AMSEDC-SAT-3 -5","Soporte Técnico","Profesional","Remoto","Todas las zonas","Hora",190519,2.2414000000000001,201726]
["AMSEDC-SAT-3 -6","Soporte Técnico","Profesional","En sitio","Zona 1","Hora",212933,627592,224140]
["AMSEDC-SAT-3 -7","Soporte Técnico","Profesional","En sitio","Zona 2","Hora",235347,851732,313796]
["AMSEDC-SAT-3 -8","Soporte Técnico","Profesional","En sitio","Zona 3","Hora",280175,1075872,392245]
["AMSEDC-SAT-4 -1","Soporte Técnico Proactivo","Técnico o tecnologo","Remoto","Todas las zonas","Hora",145691,2.2414000000000001,123277]
["AMSEDC-SAT-4 -2","Soporte Técnico Proactivo","Técnico o tecnologo","En sitio","Zona 1","Hora",201726,627592,179312]
["AMSEDC-SAT-4 -3","Soporte Técnico Proactivo","Técnico o tecnologo","En sitio","Zona 2","Hora",224140,851732,212933]
["AMSEDC-SAT-4 -4","Soporte Técnico Proactivo","Técnico o tecnologo","En sitio","Zona 3","Hora",268968,1075872,235347]
["AMSEDC-SAT-4 -5","Soporte Técnico Proactivo","Profesional","Remoto","Todas las zonas","Hora",145691,2.2414000000000001,201726]
["AMSEDC-SAT-4 -6","Soporte Técnico Proactivo","Profesional","En sitio","Zona 1","Hora",201726,627592,224140]
["AMSEDC-SAT-4 -7","Soporte Técnico Proactivo","Profesional","En sitio","Zona 2","Hora",224140,851732,313796]
["AMSEDC-SAT-4 -8","Soporte Técnico Proactivo","Profesional","En sitio","Zona 3","Hora",268968,1075872,392245]
["AMSEDC- SAT-5-1","Soporte Técnico Reactivo","Técnico o tecnologo","Remoto","Todas las zonas","Hora",145691,2.2414000000000001,123277]
["AMSEDC- SAT-5-2","Soporte Técnico Reactivo","Técnico o tecnologo","En sitio","Zona 1","Hora",201726,627592,179312]
["AMSEDC- SAT-5-3","Soporte Técnico Reactivo","Técnico o tecnologo","En sitio","Zona 2","Hora",224140,851732,212933]
["AMSEDC- SAT-5-4","Soporte Técnico Reactivo","Técnico o tecnologo","En sitio","Zona 3","Hora",268968,1075872,235347]
["AMSEDC- SAT-5-5","Soporte Técnico Reactivo","Profesional","Remoto","Todas las zonas","Hora",145691,2.2414000000000001,201726]
["AMSEDC- SAT-5-6","Soporte Técnico Reactivo","Profesional","En sitio","Zona 1","Hora",201726,627592,224140]
["AMSEDC- SAT-5-7","Soporte Técnico Reactivo","Profesional","En sitio","Zona 2","Hora",224140,851732,313796]
["AMSEDC- SAT-5-8","Soporte Técnico Reactivo","Profesional","En sitio","Zona 3","Hora",268968,1075872,392245]

{"sheet":"CSV","index":14,"n_rows":3,"n_cols":7,"rows_kept":3,"cut":false,"hidden":true,"merged":[]}
["Tipo","Cantidad","Código de unidad de medida","Precio base","Divisa","Descripción","Mercancía"]
["item",1,"Und","207632","COP","idg01--AMSEDC-SSL-01-2-Certificado digital de sitio web SSL DV Validación Dominio "]
["item",1,"Und","39450,08","COP","idg01--IVA"]

{"sheet":"formatoCeldas","index":15,"n_rows":18,"n_cols":21,"rows_kept":18,"cut":false,"hidden":true,"merged":[[9,1,9,2],[8,1,8,2],[8,3,8,7],[9,3,9,7],[12,1,12,2],[12,3,12,7],[17,1,17,2],[13,1,13,2],[16,1,16,2],[16,3,16,7],[13,3,13,7],[17,3,17,7]]}
[]
["Campo de usuario"]
[]
["Campo de usuario resaltado"]
[]
["Campo de usuario bloqueado"]
[]
[]
["Item","Código",null,"Nombre",null,null,null,null,"Caracteristica 1","Característica 2","Característica 3","Característica 4","Unidad de Facturación","Cantidad"]
[]
[]
[]
["Item","Código",null,"Nombre",null,null,null,null,"Caracteristica 1","Característica 2","Característica 3","Característica 4","Unidad de Facturación","Cantidad","Precio Catálogo","Precio + Gravamen ","Precio x Cantidad","IVA","Subtotal"]
[null,null,null,null,null,null,null,null,null,null,null,null,null,null,null,{"$f":"ROUND(IFERROR((O14)/(1-TotalGravamen),\"\"),2)","v":0},{"$f":"ROUND(IFERROR(N14*P14,\"\"),2)","v":0},{"$f":"ROUND(IFERROR(Q14*0.19,\"\"),2)","v":0},{"$f":"IFERROR(Q14+R14,\"\")","v":0}]
[]
[]
["Item","Código",null,"Nombre",null,null,null,null,"Caracteristica 1","Característica 2","Característica 3","Característica 4","Unidad de Facturación","Cantidad","Precio Catálogo","Precio + Gravamen","Descuento","Precio con descuento","Subtotal","IVA","Valor IVA sobre Descuento"]
[null,null,null,null,null,null,null,null,null,null,null,null,null,null,null,{"$f":"IFERROR(ROUND((O18)/(1-TotalGravamen),2),\"\")","v":0},null,{"$f":"IFERROR(ROUND(P18-(P18*Q18),2),\"\")","v":0},{"$f":"IFERROR(ROUND((R18*N18),2),\"\")","v":0},null,{"$f":"IFERROR(IF(T18=\"Si\",ROUND(S18*19%,2),0),\"\")","v":0}]